Cogmind - Beta 16 @@@ ROGUE MODE // 2025.11.11 @ 07:04:17 Player: Darcyisverycute Result: Destroyed by AP7-3 with Concept XC Strikerail Performance ------------- Evolutions (7) 3500 Regions Visited (28) 5600 Robots Destroyed (422) 2110 Value Destroyed (16327) 16327 Prototype IDs (160) 3200 Alien Tech Used (6) 1200 Bonus (24157) 24157 TOTAL SCORE: 56094 Bonus ------- Triggered High Security 500 High Alert Combat Kills 4988 Follower Combat Kills 1351 Destroyed Unchained 1000 Met Zhirov 300 Met Warlord at Base 500 MAIN.C Attacked Warlord 500 Warlord Defense Kills 440 Scanned by Researcher 500 Destroyed Superfortress 15000 Friendly Fire -922 Cogmind --------- Core Integrity 0/1300 Matter 300/300 Energy 212/300 System Corruption 32% Temperature Cool (2) Movement Walking (80) Location -3/Protoforge Parts ------- > --- POWER (2) -------- (None) > --- PROPULSION (7) --- Experimental VSS Leg Experimental Armored Exoskeleton Concept Biometal Exoskeleton > --- UTILITY (10) ----- Concept Antigrav Storage Unit Small Battery Small Battery Concept Projectile Intercept Suite Experimental Core Analyzer Femtoactuators Concept Cloak Mesh Centrium Medium Armor Plating Graphene Brace Concept Energy Mantle > --- WEAPON (3) ------- Core Cannon Nanosword > --- INVENTORY (25) --- Faulty Experimental VSS Leg Faulty Experimental VSS Leg Experimental Armored Exoskeleton Experimental Antigrav System Experimental Antigrav System Experimental Antigrav System Concept Combat Aerolev Unit Concept Combat Aerolev Unit Faulty Concept Melee Reflex Suite Femtoactuators Faulty Concept Cloak Mesh Concept Antimissile System Experimental System Purifier Crosscalibrator Subatomic Replicator Concept Disintegration Ray (50) Faulty Concept Disintegration Ray (50) Concept Rapid Grenade Launcher Concept Tiamat Rocket Array Nanosword Experimental Jetlance Zhirov Special Peak State ------------ > --- POWER ------------ Micro Antimatter Reactor Micro Antimatter Reactor > --- PROPULSION ------- Experimental VSS Leg Experimental Armored Exoskeleton Concept Biometal Exoskeleton > --- UTILITY ---------- Concept Antigrav Storage Unit Small Battery Concept Weapon Articulator Experimental Core Analyzer Femtoactuators Advanced ECM Suite Concept Cloak Mesh Centrium Medium Armor Plating Graphene Brace Concept Antimissile System > --- WEAPON ----------- Core Cannon Concept Deflector Sword > --- INVENTORY -------- Experimental Armored Exoskeleton Experimental Antigrav System Experimental Antigrav System Experimental Antigrav System Concept Combat Aerolev Unit Concept Combat Aerolev Unit Concept Melee Reflex Suite Femtoactuators Concept Cloak Mesh Experimental System Purifier Crosscalibrator Subatomic Replicator Concept Disintegration Ray Concept Disintegration Ray Concept Rapid Grenade Launcher Concept Tiamat Rocket Array Nanosword Nanosword Sigix Broadsword Experimental Jetlance Zhirov Special [Rating: 247] Favorites ----------- Power Backup Power III Engine Backup Power III Power Core Light Nuclear Core Reactor Micro Antimatter Reactor Propulsion Cooled VTOL Module Treads Light Treads Leg Aluminum Leg Hover Unit Gravjet Array Flight Unit Cooled VTOL Module Utility Advanced Hacking Suite Device Improved Sensor Array Storage Medium Storage Unit Processor Improved Signal Interpreter Hackware Advanced Hacking Suite Protection Experimental Propulsion Shielding Weapon Improved EM Shotgun Energy Gun Improved EM Shotgun Energy Cannon Core Cannon Ballistic Gun Enhanced Autogun Ballistic Cannon Tri-rail Accelerator Launcher Guided EMP Blaster Special Weapon Plasma Cutter Slashing Weapon Nanosword Piercing Weapon Plasma Lance Special Melee Weapon Improved Datajack Build | -11 -10 -10 -9 -9 -8 -7 -7 -7 -6 -6 -6 -5 -5 -5 -5 -5 -5 -4 -4 -4 -4 -4 -4 -4 -3 -3 -3 -3 ------- Run | Yrd Mat Min Mat Min Mat Fac Was Fac Fac Was Fac Fac Was Fac Upp Upp War Pro Fac Was Fac Upp Upp Zhi Pro Res Qua Frg Slots Evolved 14 | . . . 2 . 2 2 . . 2 . . 2 . . . . . . 2 . . . . . . 2 . . Power . | . . . . . . . . . . . . . . . . . . . . . . . . . . . . . Propulsion 5 | . . . 2 . . . . . . . . 1 . . . . . . 1 . . . . . . 1 . . Utility 8 | . . . . . 2 2 . . 2 . . 1 . . . . . . 1 . . . . . . . . . Weapon 1 | . . . . . . . . . . . . . . . . . . . . . . . . . . 1 . . Parts Attached 251 | 6 8 3 32 4 14 17 . 12 13 1 5 12 . 10 . . 12 . 14 2 8 1 . 3 1 19 11 43 Power 25 | . 1 . 3 . 1 1 . 1 3 . . 3 . 1 . . 1 . 2 2 . 1 . . . 1 1 3 Engine 12 | . . . 2 . 1 1 . 1 3 . . 2 . . . . 1 . . . . . . . . . 1 . Core 7 | . 1 . 1 . . . . . . . . 1 . 1 . . . . 2 . . 1 . . . . . . Reactor 6 | . . . . . . . . . . . . . . . . . . . . 2 . . . . . 1 . 3 Propulsion 61 | 2 2 2 14 . 4 5 . 3 2 . . 1 . . . . 2 . 1 . 2 . . . . 10 . 11 Treads 21 | 2 2 . 13 . 3 . . . . . . . . . . . . . . . . . . . . . . 1 Leg 7 | . . 2 . . . . . . . . . . . . . . . . . . . . . . . . . 5 Wheel . | . . . . . . . . . . . . . . . . . . . . . . . . . . . . . Hover 2 | . . . . . . . . . . . . . . . . . . . . . . . . . . . . 2 Flight 31 | . . . 1 . 1 5 . 3 2 . . 1 . . . . 2 . 1 . 2 . . . . 10 . 3 Utility 108 | 2 1 1 5 2 5 9 . 6 5 1 3 6 . 5 . . 6 . 8 . 5 . . 3 1 3 6 25 Device 48 | 1 . 1 1 . 2 3 . 4 1 . . 3 . 2 . . 2 . 5 . 3 . . 1 . 2 3 14 Storage 12 | 1 1 . 1 1 . . . . . 1 . . . . . . 1 . . . . . . . . 1 . 5 Processor 18 | . . . 2 1 2 1 . . . . . . . 1 . . 3 . 1 . 1 . . . . . 3 3 Hackware 22 | . . . . . . 5 . 2 3 . 3 2 . 1 . . . . 2 . 1 . . 2 . . . 1 Protection 8 | . . . 1 . 1 . . . 1 . . 1 . 1 . . . . . . . . . . 1 . . 2 Artifact . | . . . . . . . . . . . . . . . . . . . . . . . . . . . . . Weapon 57 | 2 4 . 10 2 4 2 . 2 3 . 2 2 . 4 . . 3 . 3 . 1 . . . . 5 4 4 Energy Gun 8 | 1 . . 3 . 2 . . . . . . . . . . . 1 . . . . . . . . . 1 . Energy Cannon 3 | . . . 1 . . . . . . . . . . . . . 1 . . . . . . . . . . 1 Ballistic Gun 13 | 1 3 . 4 2 1 . . . . . . . . 1 . . . . 1 . . . . . . . . . Ballistic Cannon 1 | . . . . . . . . . . . . 1 . . . . . . . . . . . . . . . . Launcher 9 | . . . 2 . . 1 . 1 1 . 1 . . . . . . . 1 . 1 . . . . 1 . . Special Weapon 2 | . . . . . . . . 1 . . . . . . . . 1 . . . . . . . . . . . Impact Weapon . | . . . . . . . . . . . . . . . . . . . . . . . . . . . . . Slashing Weapon 10 | . 1 . . . . 1 . . 1 . . 1 . . . . . . . . . . . . . 2 2 2 Piercing Weapon 5 | . . . . . . . . . . . . . . 1 . . . . . . . . . . . 2 1 1 Special Melee Weapon 6 | . . . . . 1 . . . 1 . 1 . . 2 . . . . 1 . . . . . . . . . Unidentified Prototypes 50 | . . . 7 . 3 2 . . 1 1 . 2 . 3 . 1 8 . 1 . . . . 4 . 5 1 11 Corrupted Parts 3 | . . . . . . . . 2 . . . . . . . . . . . . . . . . . . . 1 System Corruption 20 | . . . . . . . . 10 . . . . . . . . . . . . . . . . . . . 10 Parts Lost 55 | . 2 1 3 1 1 . . 1 4 . . 4 . 1 . . . . 8 . 1 . . 1 . 8 1 18 Power 16 | . . . 1 . . . . 1 2 . . 2 . . . . . . 3 . . . . . . 2 . 5 Propulsion 14 | . 2 1 1 . . . . . . . . . . . . . . . 1 . 1 . . 1 . 4 . 3 Utility 18 | . . . 1 . . . . . 2 . . 1 . 1 . . . . 2 . . . . . . 2 1 8 Weapon 7 | . . . . 1 1 . . . . . . 1 . . . . . . 2 . . . . . . . . 2 Highest Loss Streak 5 | . 1 1 3 1 1 . . 1 1 . . 2 . 1 . . . . 2 . 1 . . 1 . 4 1 5 To Critical Strikes . | . . . . . . . . . . . . . . . . . . . . . . . . . . . . . Average Backups 13 | . 7 13 23 24 24 10 10 9 9 9 9 8 9 8 7 7 8 9 9 9 8 9 9 8 9 9 12 16 Power . | . . . . 1 . . . . . . . . . . . . . . . . . . . . . . . . Propulsion 2 | . . . 4 6 6 1 1 1 1 1 1 . 1 . . . . 1 . . . . . . . . . 3 Utility 7 | . 3 8 9 10 10 3 5 6 5 4 6 5 6 5 5 5 5 6 7 7 7 8 8 7 8 7 7 6 Weapon 3 | . 2 4 7 6 5 3 1 . 1 2 1 1 2 2 2 2 2 2 1 1 1 1 . . . . 2 5 Tool/Special . | . . . . . . . . . . . . . . . . . . . . . . . . . . . . . Unused Backups 54 | . 5 . 6 . 2 3 3 2 . 1 2 2 . 3 . . 2 . 1 . 1 . . 1 1 . 1 18 Power . | . . . . . . . . . . . . . . . . . . . . . . . . . . . . . Propulsion 18 | . 3 . 1 . 2 . . 1 . . 1 . . . . . . . 1 . . . . . . . . 9 Utility 16 | . . . 1 . . 3 . 1 . . . 2 . 3 . . 1 . . . . . . 1 1 . . 3 Weapon 17 | . 2 . 4 . . . 2 . . 1 1 . . . . . 1 . . . 1 . . . . . . 5 Tool/Special 3 | . . . . . . . 1 . . . . . . . . . . . . . . . . . . . 1 1 Average Slot Usage (%) 94 | . 82 98 98 100 98 91 92 91 93 100 100 96 94 94 100 99 96 100 95 94 94 95 94 91 90 86 94 80 Engine 5 | . . . 9 11 9 6 7 6 5 6 6 3 . . . . 2 5 4 4 9 6 5 5 5 1 . . Core 1 | . 3 14 1 . . . . . . . . 1 5 5 5 5 5 5 4 1 . 3 4 5 5 2 5 2 Treads 13 | . 27 19 42 44 35 . . . . . . . . . . . . . . . . . . . . . . . Flight 17 | . . . . . . 29 30 30 25 26 26 28 29 29 29 28 27 27 29 30 30 30 30 26 25 28 31 17 Device 6 | . 7 12 2 1 9 6 7 7 7 13 8 6 11 6 5 4 3 5 9 11 5 5 5 4 5 6 6 15 Storage 7 | . 14 14 10 13 9 7 7 7 6 6 6 4 5 5 5 5 5 5 5 5 5 5 5 5 5 4 4 5 Processor 9 | . . . 7 2 13 8 7 7 6 6 6 5 5 5 5 5 9 11 12 15 19 20 20 20 20 14 18 15 Hackware 14 | . . . . . . 21 23 23 30 26 29 30 29 30 29 28 27 27 20 16 19 20 20 20 20 16 13 2 Protection 1 | . . . 1 4 3 . . . . . . 2 . 2 5 5 2 . 1 1 . . . . . 2 1 1 Energy Gun 3 | . 8 . 14 7 1 . . . . . . . . . . . . . . . . . . . . . . . Ballistic Gun 3 | . 18 19 4 7 12 1 . . . . . . . . . . . . . . . . . . . . . . Slashing Weapon 3 | . . 8 2 2 3 7 7 6 4 6 6 3 5 4 5 5 4 3 2 . . . . . . 1 9 7 Peak Build Rating 247 | 6 10 12 27 28 38 43 44 51 63 67 71 91 79 95 89 88 116 106 130 135 131 131 133 134 137 165 189 247 Average Rating 74 | 4 7 11 19 26 34 40 43 46 58 62 66 81 79 86 88 87 95 106 118 123 128 130 130 130 134 146 178 193 On Entrance 80 | . 6 10 12 27 25 34 43 44 51 62 63 71 79 79 87 88 88 106 106 127 124 130 131 131 134 133 162 181 Avg Prop Armor Cover (%) 3 | . . . 5 . . 5 . . 15 . . . . . . . . . . . 1 3 . . . 2 . 14 Naked Turns . | . . . . . . . . . . . . . . . . . . . . . . . . . . . . . Heaviest Build 103 | 8 49 49 98 103 100 94 19 21 25 19 25 25 22 32 23 25 33 30 38 52 35 38 38 43 43 46 47 78 Greatest Support 184 | 40 40 40 83 83 83 20 20 20 30 21 30 36 27 36 27 36 42 31 49 38 48 39 45 39 37 56 56 184 Greatest Overweight (x) 5 | . 2 4 2 1 1 4 . 1 5 . 5 . . 1 . . 1 . . 1 . . . 1 1 1 1 3 Average Overweight (x) . | . . 1 . 1 1 . . . . . . . . . . . . . . . . . . . 1 . . . Largest Inventory Capacity 25 | 8 20 20 25 25 25 25 10 10 10 10 10 10 10 10 10 10 10 10 10 10 10 10 10 10 10 15 15 25 Average Capacity 15 | 6 10 20 24 25 25 10 10 10 10 10 10 9 10 10 10 10 10 10 10 10 10 10 10 10 10 11 15 21 Most Carried 25 | 2 13 16 25 25 25 25 10 10 10 10 10 10 10 10 9 10 10 10 10 10 10 10 10 10 10 13 15 25 Average Carried 14 | . 7 13 23 24 24 9 9 9 9 9 9 8 10 9 9 9 9 10 9 9 9 9 9 9 9 10 14 20 Final Capacity 25 | 8 20 20 25 25 25 10 10 10 10 10 10 10 10 10 10 10 10 10 10 10 10 10 10 10 10 15 15 25 Final Carried 25 | 2 13 15 25 25 24 10 10 10 9 10 10 10 10 9 9 9 10 10 10 10 10 10 10 10 10 13 14 25 Class Distribution -------------------- 33% | Mutant 13% | Wizard-Sprinter 13% | Hacker-Scout 12% | Hacker-Sprinter 4% | Wizard-Skirmisher 4% | Scavenger-Mutant 3% | Wizard-Scout 3% | Wizard-Ninja Dominant Class ---------------- Mutant | -10/Materials Scavenger-Mutant | -10/Mines Mutant | -9/Materials Mutant | -9/Mines Mutant | -8/Materials Hacker-Sprinter | -7/Factory Hacker-Sprinter | -7/Waste Hacker-Sprinter | -7/Factory Hacker-Sprinter | -6/Factory Hacker-Scout | -6/Waste Wizard-Sprinter | -6/Factory Wizard-Sprinter | -5/Factory Wizard-Sprinter | -5/Waste Wizard-Sprinter | -5/Factory Wizard-Sprinter | -5/Upper Caves Wizard-Sprinter | -5/Upper Caves Wizard-Sprinter | -5/Warlord Wizard-Scout | -4/Proximity Caves Hacker-Scout | -4/Factory Hacker-Sprinter | -4/Waste Hacker-Scout | -4/Factory Hacker-Scout | -4/Upper Caves Hacker-Scout | -4/Upper Caves Wizard-Skirmisher | -4/Zhirov Wizard-Skirmisher | -3/Proximity Caves Wizard-Scout | -3/Research Wizard-Ninja | -3/Quarantine Scavenger-Mutant | -3/Protoforge Resources | -11 -10 -10 -9 -9 -8 -7 -7 -7 -6 -6 -6 -5 -5 -5 -5 -5 -5 -4 -4 -4 -4 -4 -4 -4 -3 -3 -3 -3 ----------- Run | Yrd Mat Min Mat Min Mat Fac Was Fac Fac Was Fac Fac Was Fac Upp Upp War Pro Fac Was Fac Upp Upp Zhi Pro Res Qua Frg Matter Collected 13983 | 267 167 78 890 214 811 481 . 539 1003 136 325 1170 . 439 32 86 846 10 455 343 2347 443 296 113 128 1090 353 921 Remotely 314 | . . . . . . . . . . . . . . . . . . . . . 235 . . . . 79 . . Salvage Created 18327 | 124 396 78 1608 370 1112 335 . 868 1110 . 333 1013 287 481 53 . 104 . 406 244 2864 575 410 60 3 1203 1170 3120 Parts 905 | 5 24 3 125 39 69 25 . 51 49 . 11 73 4 27 8 . 7 . 25 . 130 11 13 1 3 43 51 108 Haulers Intercepted 26 | . 1 . 6 . 6 1 . 1 1 . . 1 . 1 . . . . . . 5 . . . . 2 1 . Recyclers Shooed 13 | . 1 . 1 . 2 . . 2 . . 3 2 . . . . . . . . 2 . . . . . . . Parts Field Recycled . | . . . . . . . . . . . . . . . . . . . . . . . . . . . . . Retrieved Matter . | . . . . . . . . . . . . . . . . . . . . . . . . . . . . . Parts Self-Destructed 18 | . . . . . . . . . . . . . . . 7 . . . . . . 3 4 . 4 . . . Prevented 20 | . . . . . . . . . . . . . . . 3 . . . . . . 8 9 . . . . . Parts Restored 1 | . . . . . . . . . . . . . . . . . . . . . . . . . . . . 1 Faulty 1 | . . . . . . . . . . . . . . . . . . . . . . . . . . . . 1 Kills | -11 -10 -10 -9 -9 -8 -7 -7 -7 -6 -6 -6 -5 -5 -5 -5 -5 -5 -4 -4 -4 -4 -4 -4 -4 -3 -3 -3 -3 ------- Run | Yrd Mat Min Mat Min Mat Fac Was Fac Fac Was Fac Fac Was Fac Upp Upp War Pro Fac Was Fac Upp Upp Zhi Pro Res Qua Frg Combat Hostiles Destroyed 261 | . 10 2 34 15 14 3 . 6 6 . 7 20 . 4 5 . 3 . 11 1 52 9 5 . 1 16 5 32 Melee 42 | . . . . . . 3 . 2 2 . . 2 . . . . 1 . 1 . . . . . . 1 5 25 Guns 59 | . 10 2 26 7 14 . . . . . . . . . . . . . . . . . . . . . . . Cannons 86 | . . . . . . . . . . . . 8 . . . . 2 . 3 1 52 4 . . 1 15 . . AOE 63 | . . . 8 8 . . . 4 4 . 7 10 . 4 5 . . . 7 . . 1 . . . . . 5 Classes Destroyed 27 | 2 4 . 4 . 2 2 . . . . . 1 . 1 . . 1 . . 1 5 1 . . . . 1 2 Worker 29 | . . . 2 1 1 2 . 4 2 . 2 4 . . . . . . . . 10 . . . . 1 . . Builder 21 | . . . . . . 1 . 3 1 . . 3 . 2 . . . . 1 . 10 . . . . . . . Tunneler 7 | 2 . . . 1 1 . . 1 . . . 1 . . . . . . . . 1 . . . . . . . Hauler 26 | . 1 . 6 . 6 1 . 1 1 . . 1 . 1 . . . . . . 5 . . . . 2 1 . Recycler 27 | 1 . . . . 2 1 . 4 6 . 2 3 . 1 . . . . . . . . . . . 3 4 . Mechanic 4 | . . . . . 1 . . 1 1 . . . . . . . . . . . 1 . . . . . . . Operator 17 | . 1 . 3 . 1 1 . 3 1 . . . . 2 . . . . 2 . . . . . . 1 1 1 Drone 8 | . . . . . . . . . . . . 1 . . . . . . 3 . . . . . 1 . . 3 Watcher 22 | . . . 2 . 1 . . 2 2 . . 2 . 2 . . . . 2 . 2 . . . . 3 1 3 Swarmer 83 | . 3 . 13 9 5 . . 3 3 . 7 16 . 4 5 . . . 5 . . . . . . 8 2 . Saboteur 2 | . . . . . . . . . . . . . . . . . . . . . 1 . . . . . . 1 Grunt 67 | . 7 2 11 4 4 1 . 2 . . . . . . . . 2 . . . 18 . 4 . . 3 1 8 Brawler 6 | . . . . . . . . . . . . . . . . . . . . . 6 . . . . . . . Duelist 8 | . . . 1 . . . . . . . . 1 . . . . . . . . 6 . . . . . . . Protector 2 | . . . . . . . . . . . . . . . . . . . . . 2 . . . . . . . Researcher 7 | . . . . . . . . . . . . . . . . . . . . . . . . . . . 5 2 Sentry 21 | . . . 9 2 4 . . . . . . . . . . . . . 1 . 1 . . . . 2 . 2 Hunter 19 | . . . . . 1 . . 1 . . . . . . . . . . . . 9 3 . . . . . 5 Programmer 23 | . . . . . . 2 . . 3 . . 1 . . . . . . 2 . 7 . . . . 3 1 4 Heavy 1 | . . . . . . . . . . . . . . . . . . . . . 1 . . . . . . . Behemoth 1 | . . . . . . . . . . . . . . . . . . . . . 1 . . . . . . . Compactor 1 | . . . . . . . . . . . . . . . . . . . . 1 . . . . . . . . Quarantine Guard 1 | . . . . . . . . . . . . . . . . . . . . . . . . . . . 1 . Decapitator 4 | . . . . . . . . . . . . . . . . . . . . . . . . . . . . 4 Immortal 1 | . . . . . . . . . . . . . . . . . . . . . . . . . . . . 1 Investigator 1 | . . . . . . . . . . . . . . . . . . . . . . . . . . . . 1 Executioner 1 | . . . . . . . . . . . . . . . . . 1 . . . . . . . . . . . V-Series 4 | . . . . . . . . . . . . . . . . . . . . . . . . . . . . 4 Thug 1 | . . . . . . . . . . . . . . . . . . . . . . 1 . . . . . . Butcher 4 | . . . . . . . . . . . . . . . . . . . . . . 4 . . . . . . Martyr 2 | . . . . . . . . . . . . . . 2 . . . . . . . . . . . . . . Mutant 2 | . . . . . . . . . . . . . . . . . . . . . . 1 1 . . . . . Best Kill Streak 15 | 2 3 2 5 6 7 3 . 6 7 . 5 8 . 6 5 . 2 . 8 1 15 1 4 2 1 5 4 6 Combat Bots Only 7 | . 3 2 4 5 4 1 . 3 3 . 4 5 . 4 5 . 2 . 7 1 5 1 4 . 1 3 2 6 Max Kills in Single Turn 5 | 1 1 2 3 3 2 1 . 4 2 . 4 5 . 4 5 . 1 . 4 1 2 1 2 2 1 1 1 3 Gunslinging 1 | . . 1 . . . . . . . . . . . . . . . . . . . . . . . . . . Exploded 5 | . . . 3 3 . . . 3 2 . 3 5 . 3 5 . . . 4 . . 1 . . . . . 2 Melee 1 | . . . . . . 1 . 1 1 . . 1 . . . . 1 . 1 . . . . . . 1 1 1 Uniques/NPCs Destroyed 3 | . . . . . . . . . . . . 1 . . . . . . . . . . . 2 . . . . DW-4LL (-5/Factory) Perun (-4/Zhirov) Svarog (-4/Zhirov) Combat | -11 -10 -10 -9 -9 -8 -7 -7 -7 -6 -6 -6 -5 -5 -5 -5 -5 -5 -4 -4 -4 -4 -4 -4 -4 -3 -3 -3 -3 -------- Run | Yrd Mat Min Mat Min Mat Fac Was Fac Fac Was Fac Fac Was Fac Upp Upp War Pro Fac Was Fac Upp Upp Zhi Pro Res Qua Frg Hostile Shots Fired 1291 | . 60 19 122 37 86 29 1 21 80 . 27 80 . 20 9 5 2 . 90 . 70 5 2 7 2 82 58 377 Missed 501 | . 7 5 42 10 27 10 1 10 39 . 18 33 . 10 6 3 1 . 45 . 35 2 1 1 2 26 25 142 Deflected 8 | . . . . . . . . . . . . . . . . . . . . . . . . . . . . 8 Hits 790 | . 53 14 80 27 59 19 . 11 41 . 9 47 . 10 3 2 1 . 45 . 35 3 1 6 . 56 33 235 Melee 14 | . . . . . . . . 1 . . . . . . . . . . . . . . . . . . . 13 Projectile 776 | . 53 14 80 27 59 19 . 10 41 . 9 47 . 10 3 2 1 . 45 . 35 3 1 6 . 56 33 222 AOE 3 | . . . . . . . . . . . . . . . . . . . 2 . . . . . . . . 1 Critical Strikes 47 | . 1 . 1 1 3 2 . . 1 . . . . . 1 . . . 10 . 2 1 . . . 4 2 18 Actively Blocked 19 | . . . . . . . . . . . . . . . . . . . 1 . . . . . . 1 1 16 Part Disruptions 4 | . . . . . . 1 . . . . . . . . . . . . . . . . . . . 1 . 2 Damage Taken 15267 | . 558 178 1006 393 796 243 . 199 597 . 197 770 . 276 60 52 39 . 1234 . 796 60 19 102 . 1283 913 5496 Core 2794 | . 114 10 96 25 93 56 . 33 241 . 119 235 . 71 . 18 39 . 207 . 204 14 . 27 . 306 159 727 Absorbed by Shields 318 | . . . . . . . . . . . . . . . . . . . . . 20 . . . . . . 298 Redirected to Shielding 682 | . . . . . . . . . . . 8 79 . 87 16 . . . 192 . . . . . . 91 39 170 Regen/Repaired (Parts) 2975 | . . . 504 . . 15 . 77 70 8 . 324 17 108 . . 73 . 75 69 572 . . . . 395 330 338 Core Remaining (%) 71 | 100 . 50 . 69 83 . . 87 . . 57 . . . . . . 63 . . . . . . 60 . . . Volleys Fired 850 | 7 44 7 86 21 91 . . 6 7 . 3 63 . 8 1 . 12 . 28 1 272 44 24 15 8 91 2 9 Largest 2 | 2 2 2 2 2 2 . . 1 1 . 1 1 . 1 1 . 1 . 1 1 1 1 1 1 1 1 1 1 Hottest 300 | 60 60 40 90 90 70 . . 45 45 . 49 60 . 60 49 . 60 . 60 60 60 60 60 60 60 60 94 300 Shots Fired 1076 | 14 88 14 165 35 168 . . 6 7 . 3 63 . 8 1 . 12 . 28 1 270 43 24 15 8 92 2 9 Gun 475 | 14 88 14 156 30 168 . . . . . . . . . . . . . 3 . . . . . . . 2 . Cannon 507 | . . . . . . . . . . . . 58 . 5 . . 12 . 24 1 269 19 7 7 8 92 . 5 Launcher 91 | . . . 9 5 . . . 3 7 . 3 5 . 3 1 . . . 1 . 1 24 17 8 . . . 4 Special 3 | . . . . . . . . 3 . . . . . . . . . . . . . . . . . . . . Kinetic 769 | 7 56 14 36 11 140 . . . . . . 58 . 5 . . 12 . 27 1 269 19 7 7 8 92 . . Thermal 49 | 7 32 . . . . . . 3 . . . . . . . . . . . . . . . . . . 2 5 Explosive 41 | . . . 9 5 . . . 3 7 . 3 5 . 3 1 . . . 1 . . . . . . . . 4 Electromagnetic 217 | . . . 120 19 28 . . . . . . . . . . . . . . . 1 24 17 8 . . . . Robot Hit Streak 30 | 4 7 10 30 7 12 . . 2 4 . . 8 . 2 . . 5 . 5 2 19 11 1 7 1 15 . . Robot Miss Streak 13 | 2 3 1 5 6 3 . . 5 4 . . 6 . 1 . . 3 . 3 3 13 3 1 3 2 6 . . Penetration Max . | . . . . . . . . . . . . . . . . . . . . . . . . . . . . . Secondary Targets 2 | . 1 1 . . . . . . . . . . . . . . . . . . . . . . . . . . Max Gunslinging Chain 1 | . 1 1 . . . . . . . . . . . . . . . . . . . . . . . . . . Shots Hit Robots 992 | 9 59 12 120 19 125 16 . 31 43 . 7 45 12 10 . . 17 . 23 1 223 17 1 6 1 62 35 98 Core Hits 727 | 5 25 6 85 20 46 8 . 29 28 . 15 40 1 12 5 . 5 . 16 1 206 23 11 8 1 50 19 62 Critical Kills . | . . . . . . . . . . . . . . . . . . . . . . . . . . . . . Critical Parts Destroyed . | . . . . . . . . . . . . . . . . . . . . . . . . . . . . . Critical Strikes 35 | . . . . . . . . . 3 . . . . 1 . . . . . . 14 . . . . 2 4 11 Blast 17 | . . . . . . . . . . . . . . 1 . . . . . . 14 . . . . 2 . . Sever 17 | . . . . . . . . . 3 . . . . . . . . . . . . . . . . . 3 11 Impale 1 | . . . . . . . . . . . . . . . . . . . . . . . . . . . 1 . Melee Attacks 796 | . 1 1 29 1 21 56 . 83 100 2 48 57 12 32 . 1 50 4 34 . . . . . . 32 85 147 Impact . | . . . . . . . . . . . . . . . . . . . . . . . . . . . . . Slashing 763 | . 1 1 29 1 20 56 . 83 96 2 48 55 12 29 . 1 46 4 31 . . . . . . 24 77 147 Piercing 19 | . . . . . . . . . . . . . . 3 . . . . . . . . . . . 8 8 . Sneak Attacks 95 | . . . 1 . . 7 . 18 17 . 3 9 . 5 . . 5 . 6 . . . . . . 3 10 11 Combat Hostiles 12 | . . . . . . 1 . 2 1 . . 1 . . . . 1 . . . . . . . . . 1 5 Follow-up Attacks 19 | . . . . . . . . . . . . . . . . . . . . . . . . . . . 2 17 Martial Strikes 22 | . . . . . . . . . . . . . . . . . . . . . . . . . . . . 22 Damage Inflicted 56627 | 84 591 152 2552 997 2214 1030 . 2955 2806 . 1345 4300 554 1753 449 . 644 . 1729 35 12959 1616 726 547 31 3890 3738 8930 Guns 5146 | 84 591 152 1826 263 2152 . . . . . . . . . . . . . 78 . . . . . . . . . Cannons 20174 | . . . . . . . . . . . . 2047 . 68 . . 525 . 263 35 12838 891 27 392 31 3057 . . Explosions 9045 | . . . 639 730 36 . . 374 558 . 868 1340 . 1039 449 . . . 740 . 121 725 699 155 . . . 572 Melee 22101 | . . . 55 . 24 1030 . 2570 2248 . 477 913 554 646 . . 119 . 630 . . . . . . 739 3738 8358 Ramming 150 | . . . 32 4 2 . . . . . . . . . . . . . 18 . . . . . . 94 . . Kinetic 22864 | 30 358 152 290 58 1724 . . . . . . 2047 . 68 . . 525 . 341 35 12838 891 27 392 31 3057 . . Thermal 1531 | 54 233 . 66 90 36 . . 11 . . . 211 . 491 . . . . 243 . . 45 51 . . . . . Explosive 6244 | . . . 573 640 . . . 374 558 . 868 1129 . 503 449 . . . 497 . 81 . . . . . . 572 Electromagnetic 3737 | . . . 1536 205 428 . . . . . . . . 45 . . . . . . 40 680 648 155 . . . . Impact . | . . . . . . . . . . . . . . . . . . . . . . . . . . . . . Slashing 21599 | . . . 55 . 24 1030 . 2570 2248 . 477 913 554 543 . . 119 . 630 . . . . . . 539 3539 8358 Piercing 502 | . . . . . . . . . . . . . . 103 . . . . . . . . . . . 200 199 . Highest Corruption 32 | . . . . . . 1 10 18 2 15 15 . . 1 1 1 1 . 1 1 3 3 3 3 3 2 2 32 Average Corruption 6 | . . . . . . 1 7 12 2 11 15 . . 1 1 1 1 . 1 1 2 3 3 3 3 1 1 17 Corruption Purged 15 | . . . . . . . . 11 . . . . . . . . . . . . . . . . . 2 . 2 Corruption Blocked . | . . . . . . . . . . . . . . . . . . . . . . . . . . . . . Effects 217 | . . . . . . 2 2 45 7 7 52 . . . . . . . 2 . 28 8 6 9 10 7 . 32 Message Errors 50 | . . . . . . . . 11 1 1 6 . . . . . . . 1 . 7 4 2 1 3 2 . 11 Matter Fused 53 | . . . . . . 2 . 12 3 2 13 . . . . . . . 1 . 6 2 . 2 . 2 . 8 Heat Flow Errors 23 | . . . . . . . . 3 2 1 6 . . . . . . . . . 4 . 1 1 1 . . 4 Energy Discharges 35 | . . . . . . . . 9 . 1 12 . . . . . . . . . 4 1 1 3 1 1 . 2 Parts Rejected 4 | . . . . . . . 1 1 . . . . . . . . . . . . 1 . . 1 . . . . Data Loss (minor) 25 | . . . . . . . . 3 . 1 7 . . . . . . . . . 4 . 2 . 5 1 . 2 Data Loss (major) 11 | . . . . . . . 1 3 1 . 3 . . . . . . . . . . . . 1 . . . 2 Misfires 1 | . . . . . . . . . . . . . . . . . . . . . . . . . . 1 . . Alerts 6 | . . . . . . . . 3 . 1 1 . . . . . . . . . . . . . . . . 1 Misdirections 6 | . . . . . . . . . . . 4 . . . . . . . . . . . . . . . . 2 Weapon Failures 3 | . . . . . . . . . . . . . . . . . . . . . 2 1 . . . . . . Overload Shots . | . . . . . . . . . . . . . . . . . . . . . . . . . . . . . Overflow Damage 4405 | . . . 70 72 . 93 . 783 490 . 252 393 . 453 . . . . 152 . 357 27 . 11 . 156 391 705 Projectiles 354 | . . . . . . . . . . . . . . . . . . . 5 . 306 13 . 11 . 19 . . Explosions 698 | . . . 70 72 . . . . 8 . 110 130 . 240 . . . . 3 . 51 14 . . . . . . Melee 3353 | . . . . . . 93 . 783 482 . 142 263 . 213 . . . . 144 . . . . . . 137 391 705 Knockbacks 56 | . . . . . . . . . . . . 5 . 1 . . 2 . 3 . 14 1 1 3 . 26 . . Impact 1 | . . . . . . . . . . . . . . . . . . . 1 . . . . . . . . . Kinetic 51 | . . . . . . . . . . . . 4 . 1 . . 2 . 2 . 14 1 1 3 . 23 . . Secondary 4 | . . . . . . . . . . . . 1 . . . . . . . . . . . . . 3 . . Self-Inflicted Damage 586 | . . . 49 126 8 . . 27 . . 45 26 . 69 . . . . 101 . . . . . . 46 . 89 Shots 18 | . . . 2 4 1 . . 1 . . 2 1 . 2 . . . . 2 . . . . . . . . 3 Rammed 12 | . 1 . 4 1 2 . . . . . . . . . . . . . 1 . . . . . . 3 . . Targets Rammed 12 | . 1 . 4 1 2 . . . . . . . . . . . . . 1 . . . . . . 3 . . Kicked . | . . . . . . . . . . . . . . . . . . . . . . . . . . . . . Crushed . | . . . . . . . . . . . . . . . . . . . . . . . . . . . . . Highest Temperature 275 | 10 50 41 188 107 148 3 . 227 190 224 263 96 . 72 . 27 15 . 203 . 275 4 204 127 116 52 27 220 Average Temperature 45 | 7 12 21 47 46 38 3 . 114 70 141 99 27 . 27 . 14 6 . 50 . 47 2 106 45 17 18 21 79 Received Heat Transfer 2098 | . 243 105 276 66 351 45 . 18 30 . . 21 . 18 . 9 . . 451 . 9 36 . . . 63 21 336 Effects 3 | . . . . . . . . 1 . . 2 . . . . . . . . . . . . . . . . . Energy Bleed 1 | . . . . . . . . 1 . . . . . . . . . . . . . . . . . . . . Interference 2 | . . . . . . . . . . . 2 . . . . . . . . . . . . . . . . . Siege Activations . | . . . . . . . . . . . . . . . . . . . . . . . . . . . . . Martial Activations . | . . . . . . . . . . . . . . . . . . . . . . . . . . . . . Shielding Activations . | . . . . . . . . . . . . . . . . . . . . . . . . . . . . . Robots Disrupted . | . . . . . . . . . . . . . . . . . . . . . . . . . . . . . Combat Hostiles . | . . . . . . . . . . . . . . . . . . . . . . . . . . . . . Robots Corrupted 9 | . . . . . . . . . . . . . . . . . . . . . . 4 5 . . . . . Combat Hostiles 9 | . . . . . . . . . . . . . . . . . . . . . . 4 5 . . . . . Parts Fried 22 | . . . 8 . 1 . . . . . . . . . . . . . . . . 4 7 . . 2 . . Impact Corruptions 1 | . . . . . . . . . . . . . . . . . . . . . . . . . . 1 . . Robots Melted . | . . . . . . . . . . . . . . . . . . . . . . . . . . . . . Combat Hostiles . | . . . . . . . . . . . . . . . . . . . . . . . . . . . . . Parts Melted 2 | . 1 . . . . . . . . . . . . . . . 1 . . . . . . . . . . . Heat Transferred 1687 | 125 525 . 50 100 50 . . 37 . . . 150 . 350 . . . . 200 . . 50 50 . . . . . Parts Sabotaged 6 | . . . . . . . . . . . . . . . . . . . . . . . . . . . . 6 Parts Stolen . | . . . . . . . . . . . . . . . . . . . . . . . . . . . . . Parts Stripped . | . . . . . . . . . . . . . . . . . . . . . . . . . . . . . Power Chain Reactions 8 | . . . 2 2 1 . . . . . . . . 1 . . . . . . . 1 1 . . . . . Alert | -11 -10 -10 -9 -9 -8 -7 -7 -7 -6 -6 -6 -5 -5 -5 -5 -5 -5 -4 -4 -4 -4 -4 -4 -4 -3 -3 -3 -3 ------- Run | Yrd Mat Min Mat Min Mat Fac Was Fac Fac Was Fac Fac Was Fac Upp Upp War Pro Fac Was Fac Upp Upp Zhi Pro Res Qua Frg Maximum Alert Level 5 | . . . 1 1 . . . 1 1 . 1 3 1 3 . . . . 2 . 5 . . . . 1 2 5 Low Security (%) 69 | 100 100 100 72 83 100 100 100 98 92 100 95 41 47 39 . . . . 59 100 4 . . . . 57 65 . Level 1 14 | . . . 27 16 . . . 1 7 . 4 16 52 12 . . . . 22 . . . . . . 42 32 18 Level 2 4 | . . . . . . . . . . . . 22 . 44 . . . . 18 . 7 . . . . . 1 10 Level 3 2 | . . . . . . . . . . . . 18 . 3 . . . . . . 11 . . . . . . . Level 4 1 | . . . . . . . . . . . . . . . . . . . . . 25 . . . . . . . Level 5 3 | . . . . . . . . . . . . . . . . . . . . . 49 . . . . . . . High Security 3 | . . . . . . . . . . . . . . . . . . . . . . . . . . . . 70 Max Security . | . . . . . . . . . . . . . . . . . . . . . . . . . . . . . Peak Influence 2942 | 10 77 50 399 250 118 71 23 217 294 110 272 750 243 1090 . . . . 462 113 2623 . . . . 293 443 2942 Initial 249 | . . 12 . 155 4 42 23 2 105 101 . 133 243 107 . . . . . 98 32 . . . . . 151 249 Average 295 | 1 21 6 111 129 34 15 14 65 88 54 83 367 199 326 . . . . 165 70 1533 . . . . 130 171 1803 Influence Increases 17051 | 15 292 51 1094 410 540 315 . 774 824 38 569 1617 . 1522 110 15 150 . 1013 79 3403 148 290 . 12 762 873 2135 Destroy 0b10 Robot/C 6000 | . 200 40 680 300 280 60 . 120 120 . 160 360 . 560 100 . 60 . 160 . 1400 80 120 . . 320 180 700 Destroy 0b10 Robot/NC 815 | 15 10 . 65 10 65 30 . 95 70 . 20 75 . 35 . . . . 25 . 175 . . . 10 50 35 30 Destroy Leader 1226 | . 52 10 206 50 84 22 . 36 46 . 30 66 . 96 10 . . . 44 . 264 20 20 . . 70 34 66 Allied During Kill 656 | . . . . . . . . . . . . . . 64 . . . . . . 542 18 30 . 2 . . . Trap Triggered on 0b10 110 | . . . . . 10 . . . 30 . . 60 . 10 . . . . . . . . . . . . . . Successful Hack 688 | . . . 29 . 11 49 . 90 83 . 76 16 . 85 . . . . 15 . 43 . . . . 67 52 72 Disable Machine 1185 | . 15 . 30 . 15 30 . 90 60 . 15 150 . 255 . . . . 135 . 150 . . . . 15 60 165 Anti-Garrison Action 150 | . . . . . . . . . . . . . . . . . . . . . . . . . . . . 150 Destroy Structure 2141 | . . 1 69 50 15 34 . 103 115 38 58 320 . 372 . . . . 214 64 334 . . . . 120 62 172 Partial Spotted 960 | . 15 . . . . 45 . 180 120 . 45 120 . 15 . . . . 120 15 45 . . . . 45 90 105 Lose Combat Pursuer 3120 | . . . 15 . 60 45 . 60 180 . 165 450 . 30 . 15 90 . 300 . 450 30 120 . . 75 360 675 Influence Decreases 15027 | 15 260 83 695 796 459 342 64 560 750 329 297 1194 542 1650 40 69 97 94 732 313 827 1209 468 1384 12 492 700 554 Entered New Map 4637 | . . 20 . 244 9 52 44 1 112 190 . 139 452 46 10 19 41 94 . 183 15 971 298 1384 . . 119 194 Time Decay 6809 | 15 240 63 535 542 450 290 20 459 515 99 265 565 90 334 30 50 56 . 278 110 522 238 170 . 12 420 261 180 Search Patrol Dispatched 100 | . . . . . . . . . . . . . . . . . . . 100 . . . . . . . . . Lost Part 463 | . 20 . 10 10 . . . . 31 . . 40 . 10 . . . . 80 . 10 . . . . 62 10 180 Lost Ally 634 | . . . . . . . . 20 . 40 32 . . 210 . . . . 12 20 280 . . . . 10 10 . Purge Threat 2384 | . . . 150 . . . . 80 92 . . 450 . 1050 . . . . 262 . . . . . . . 300 . Squads Dispatched 166 | . 2 . 6 . 3 6 . 13 13 . 12 9 . 13 . . . . 9 . 21 . . . . 14 6 39 Investigation 44 | . 1 . 3 . . 2 . 6 4 . 4 3 . 6 . . . . 3 . 2 . . . . 5 1 4 Extermination 31 | . . . . . . 2 . 2 4 . 3 3 . 3 . . . . 4 . 2 . . . . 5 2 1 Reinforcement 37 | . 1 . 3 . 1 2 . 2 3 . 5 2 . 2 . . . . 2 . 7 . . . . 4 3 . Assault 48 | . . . . . . . . . 2 . . 1 . 2 . . . . . . 9 . . . . . . 34 Garrison 6 | . . . . . 2 . . 3 . . . . . . . . . . . . 1 . . . . . . . Intercept . | . . . . . . . . . . . . . . . . . . . . . . . . . . . . . Searches Triggered 1 | . . . . . . . . . . . . . . . . . . . 1 . . . . . . . . . Unchained Authorized 3 | . . . . . . . . . . . . 1 . . . . . . 1 . . . . . . . 1 . Construction Impeded 7 | . . . . . . . . 1 1 . . . . 1 . . . . . . 4 . . . . . . . Haulers Reinforced 4 | . . . . . . . . . 1 . . . . 1 . . . . . . . . . . . 2 . . Active Scanning Responses . | . . . . . . . . . . . . . . . . . . . . . . . . . . . . . Cargo Convoy Interrupts . | . . . . . . . . . . . . . . . . . . . . . . . . . . . . . Stealth | -11 -10 -10 -9 -9 -8 -7 -7 -7 -6 -6 -6 -5 -5 -5 -5 -5 -5 -4 -4 -4 -4 -4 -4 -4 -3 -3 -3 -3 --------- Run | Yrd Mat Min Mat Min Mat Fac Was Fac Fac Was Fac Fac Was Fac Upp Upp War Pro Fac Was Fac Upp Upp Zhi Pro Res Qua Frg Distress Signals 32 | . 3 . 7 . 6 1 . 1 1 . 1 1 . 1 . . 1 . 1 . 3 . . . . 1 3 1 Communications Jammed 14 | . . . . . . . . . . . . . . . . . . . . . . . . . . . 2 12 Distress Signals 14 | . . . . . . . . . . . . . . . . . . . . . . . . . . . 2 12 Times Spotted 759 | . 18 2 64 15 34 15 6 23 33 4 21 55 . 25 6 7 11 . 54 8 126 8 3 3 2 38 46 132 Peak Tracking Total 35 | . 4 2 6 4 4 4 6 4 5 4 5 8 . 4 5 4 4 . 18 6 24 3 4 3 1 6 10 35 Tactical Retreats 117 | . . . 1 . 2 5 . 4 17 1 6 15 . 4 . 1 3 . 11 1 14 3 3 . . 4 7 15 ECM-based Alert Blocks 50 | . . . . . . 6 . 1 10 . . 4 . 8 . 3 . . . . 1 . . . . 10 4 3 Traps | -11 -10 -10 -9 -9 -8 -7 -7 -7 -6 -6 -6 -5 -5 -5 -5 -5 -5 -4 -4 -4 -4 -4 -4 -4 -3 -3 -3 -3 ------- Run | Yrd Mat Min Mat Min Mat Fac Was Fac Fac Was Fac Fac Was Fac Upp Upp War Pro Fac Was Fac Upp Upp Zhi Pro Res Qua Frg Traps Triggered 25 | . 1 . . . . 1 . 2 3 . 2 5 . 1 . . . . 1 . 2 . . . . 1 2 4 Indirectly 1 | . . . . . . . . . . . . . . 1 . . . . . . . . . . . . . . Trap Hack Attempts 84 | . . . . . 5 . . . 37 . 6 19 . 13 . . . . 4 . . . . . . . . . Triggered . | . . . . . . . . . . . . . . . . . . . . . . . . . . . . . Disarmed 14 | . . . . . . . . . 6 . . 6 . . . . . . 2 . . . . . . . . . Reprogrammed 38 | . . . . . 1 . . . 7 . 2 16 . 6 . . . . . . 6 . . . . . . . Reused 11 | . . . . . 1 . . . 3 . . 6 . 1 . . . . . . . . . . . . . . Traps Extracted 25 | . . . . . 1 . . . 4 . 2 12 . 6 . . . . . . . . . . . . . . Installed 15 | . . . . . 1 . . . 3 . . 6 . 5 . . . . . . . . . . . . . . Triggered 11 | . . . . . 1 . . . 3 . . 6 . 1 . . . . . . . . . . . . . . Most Traps Carried 7 | . . . . . 1 . . . 2 . 2 6 6 7 7 7 7 6 6 6 6 . . . . . . . Machines | -11 -10 -10 -9 -9 -8 -7 -7 -7 -6 -6 -6 -5 -5 -5 -5 -5 -5 -4 -4 -4 -4 -4 -4 -4 -3 -3 -3 -3 ---------- Run | Yrd Mat Min Mat Min Mat Fac Was Fac Fac Was Fac Fac Was Fac Upp Upp War Pro Fac Was Fac Upp Upp Zhi Pro Res Qua Frg Machines Disabled 93 | . 1 . 3 . 1 2 . 6 4 . 1 10 . 17 . . 1 1 9 . 10 . 1 1 . 1 4 20 Max in Single Turn 12 | . 1 . 1 . 1 1 . 2 2 . 1 4 . 12 . . 1 1 4 . 4 . 1 1 . 1 1 3 Garrison Access 18 | . . . . . . 1 . 1 3 . 1 4 . 2 . . . . 2 . 1 . . . . 1 1 1 Machines Repaired . | . . . . . . . . . . . . . . . . . . . . . . . . . . . . . Machines Dismantled 1 | . . . . . . . . . 1 . . . . . . . . . . . . . . . . . . . Machines Sabotaged . | . . . . . . . . . . . . . . . . . . . . . . . . . . . . . Overloaded Fab Kills . | . . . . . . . . . . . . . . . . . . . . . . . . . . . . . Hacking | -11 -10 -10 -9 -9 -8 -7 -7 -7 -6 -6 -6 -5 -5 -5 -5 -5 -5 -4 -4 -4 -4 -4 -4 -4 -3 -3 -3 -3 --------- Run | Yrd Mat Min Mat Min Mat Fac Was Fac Fac Was Fac Fac Was Fac Upp Upp War Pro Fac Was Fac Upp Upp Zhi Pro Res Qua Frg Machines Accessed 234 | . 5 1 12 . 6 11 . 22 20 . 18 27 . 26 . . 2 . 21 . 14 . 1 3 1 19 12 13 Terminals 132 | . 4 1 8 . 6 7 . 13 13 . 12 12 . 14 . . . . 12 . 7 . . . 1 9 9 4 Fabricators 30 | . . . . . . 1 . 5 2 . 4 4 . 3 . . . . 2 . 2 . . . . 3 . 4 Repair Stations 15 | . . . 2 . . 1 . . 2 . . 2 . 2 . . . . 1 . 2 . . . . 2 1 . Recycling Units 20 | . 1 . . . . 1 . . . . . 4 . 4 . . . . 3 . 2 . . . . 2 . 3 Scanalyzers 14 | . . . 2 . . . . 3 1 . 1 1 . 1 . . . . 1 . . . . . . 2 1 1 Garrison Access 17 | . . . . . . 1 . 1 2 . 1 4 . 2 . . . . 2 . 1 . . . . 1 1 1 Total Hacks 797 | . 13 2 46 . 17 21 . 59 66 . 47 120 . 105 . . 2 . 71 . 38 . 1 13 1 86 43 46 Successful 551 | . 3 . 20 . 9 12 . 37 36 . 27 108 . 71 . . 2 . 57 . 32 . 1 13 1 63 29 30 Failed 242 | . 10 2 25 . 8 9 . 21 30 . 20 12 . 33 . . . . 13 . 6 . . . . 23 14 16 Catastrophic 45 | . 2 . 4 . 3 2 . 2 8 . 6 3 . 6 . . . . . . 1 . . . . 6 2 . Database Lockouts 4 | . . . 1 . . . . 1 . . . . . 1 . . . . 1 . . . . . . . . . Manual 347 | . 7 . 15 . 8 7 . 19 25 . 17 43 . 45 . . . . 39 . 19 . . . 5 43 24 31 Terminals 477 | . 11 2 32 . 17 14 . 34 52 . 33 64 . 66 . . . . 45 . 19 . . . 1 40 35 12 Fabricators 94 | . . . . . . 2 . 16 4 . 9 10 . 10 . . . . 7 . 6 . . . . 11 . 19 Repair Stations 44 | . . . 6 . . 2 . . 3 . . 10 . 4 . . . . 4 . 4 . . . . 8 3 . Recycling Units 95 | . 2 . . . . 2 . . . . . 29 . 17 . . . . 10 . 8 . . . . 17 . 10 Scanalyzers 52 | . . . 8 . . . . 8 5 . 4 3 . 5 . . . . 3 . . . . . . 9 4 3 Garrison Access 19 | . . . . . . 1 . 1 2 . 1 4 . 3 . . . . 2 . 1 . . . . 1 1 2 Terminal Hacks 226 | . 1 . 10 . 9 5 . 17 24 . 14 46 . 32 . . 2 . 15 . 9 . 1 13 1 11 13 3 Record 8 | . . . . . . . . . . . . . . . . . . . . . . . . 5 1 1 1 . Part Schematic 19 | . . . . . . 1 . 2 1 . 2 7 . 5 . . . . 1 . . . . . . . . . Robot Schematic 3 | . . . . . . . . 1 . . . 1 . . . . . . . . . . . . . 1 . . Robot Analysis 10 | . . . . . . . . . 2 . . 2 . . . . . . . . . . . 4 . . 1 1 Prototype ID Bank 25 | . . . 1 . . 2 . 3 2 . 1 3 . 2 . . . . 3 . 1 . . 4 . 1 2 . Open Door 3 | . . . . . . . . . . . . . . . . . 2 . . . . . 1 . . . . . Level Access Points 3 | . . . 1 . . . . . 1 . . 1 . . . . . . . . . . . . . . . . Branch Access Points 7 | . . . . . . . . 1 1 . . 1 . 1 . . . . 1 . 1 . . . . 1 . . Machine Index 3 | . . . . . . . . . 1 . . . . 1 . . . . . . . . . . . 1 . . Terminal Index 8 | . . . 1 . . 1 . 1 1 . 1 1 . 1 . . . . . . 1 . . . . . . . Fabricator Index 6 | . . . . . . 1 . 1 1 . 1 . . . . . . . . . 1 . . . . . 1 . Recycling Unit Index 2 | . . . . . . . . . . . . . . 1 . . . . . . . . . . . . . 1 Scanalyzer Index 1 | . . . . . . . . 1 . . . . . . . . . . . . . . . . . . . . Garrison Index 4 | . . . . . . . . . 1 . . 1 . 1 . . . . . . . . . . . . 1 . Alert Level 8 | . . . . . . . . 1 3 . . 1 . 2 . . . . . . . . . . . . 1 . Unreport Threat 19 | . . . 1 . . . . 2 1 . . 3 . 7 . . . . 3 . . . . . . . 2 . Locate Traps 23 | . . . 1 . 2 . . . 3 . 3 7 . . . . . . 1 . 3 . . . . 1 2 . Disarm Traps 2 | . . . . . . . . . 1 . . 1 . . . . . . . . . . . . . . . . Reprogram Traps 2 | . . . . . . . . . . . . 1 . . . . . . . . 1 . . . . . . . Dispatch Records 3 | . . . 1 . . . . . . . . 2 . . . . . . . . . . . . . . . . Maintenance Status 6 | . . . . . 2 . . 1 . . 1 1 . . . . . . . . . . . . . 1 . . Security Status 1 | . . . . . 1 . . . . . . . . . . . . . . . . . . . . . . . Surveillance Status 1 | . . . . . . . . . . . . . . 1 . . . . . . . . . . . . . . Patrol Status 2 | . . . . . . . . . . . . 2 . . . . . . . . . . . . . . . . Transport Status 6 | . . . 1 . . . . . 1 . . 3 . 1 . . . . . . . . . . . . . . Extermination Status 2 | . . . . . . . . . 1 . . . . 1 . . . . . . . . . . . . . . Recall Investigation 9 | . . . . . . . . 2 . . 3 . . 3 . . . . 1 . . . . . . . . . Recall Extermination 15 | . . . . . . . . 1 1 . 2 3 . 2 . . . . 3 . . . . . . 2 1 . Recall Reinforcements 3 | . . . . . . . . . 1 . . . . 1 . . . . . . 1 . . . . . . . Recall Assault 2 | . . . . . . . . . . . . . . 2 . . . . . . . . . . . . . . Hauler Manifests 3 | . . . . . 1 . . . 1 . . 1 . . . . . . . . . . . . . . . . Registered Components 3 | . . . . . . . . . . . . 1 . . . . . . 1 . . . . . . 1 . . Registered Prototypes 2 | . . . . . . . . . . . . 1 . . . . . . 1 . . . . . . . . . Zone Layout 11 | . 1 . 3 . 3 . . . . . . 2 . . . . . . . . . . . . . 1 1 . Proto ID Catalog 1 | . . . . . . . . . . . . . . . . . . . . . . . . . . . . 1 Fabricator Hacks 63 | . . . . . . 2 . 14 4 . 8 7 . 7 . . . . 4 . 4 . . . . 5 . 8 Network Status 3 | . . . . . . . . . . . . 1 . 1 . . . . . . . . . . . 1 . . Load Schematic 30 | . . . . . . 1 . 7 2 . 4 3 . 3 . . . . 2 . 2 . . . . 2 . 4 Build 30 | . . . . . . 1 . 7 2 . 4 3 . 3 . . . . 2 . 2 . . . . 2 . 4 Repair Station Hacks 40 | . . . 5 . . 2 . . 3 . . 10 . 4 . . . . 3 . 4 . . . . 7 2 . Scan Component 18 | . . . 3 . . 1 . . 1 . . 5 . 2 . . . . 1 . 2 . . . . 3 . . Repair 17 | . . . 2 . . 1 . . 1 . . 5 . 2 . . . . 1 . 2 . . . . 3 . . Refit 5 | . . . . . . . . . 1 . . . . . . . . . 1 . . . . . . 1 2 . Recycling Unit Hacks 42 | . 2 . . . . 2 . . . . . 19 . 5 . . . . 2 . 1 . . . . 11 . . Process 25 | . . . . . . . . . . . . 14 . 3 . . . . . . . . . . . 8 . . Report Inventory 2 | . 1 . . . . . . . . . . 1 . . . . . . . . . . . . . . . . Retrieve Matter 6 | . . . . . . 1 . . . . . 2 . . . . . . 1 . . . . . . 2 . . Retrieve Components 9 | . 1 . . . . 1 . . . . . 2 . 2 . . . . 1 . 1 . . . . 1 . . Scanalyzer 34 | . . . 5 . . . . 5 3 . 4 3 . 5 . . . . 2 . . . . . . 6 . 1 Insert Component 12 | . . . 2 . . . . 2 1 . 1 2 . 1 . . . . . . . . . . . 2 . 1 Analyze 9 | . . . 1 . . . . 2 1 . 1 1 . 2 . . . . . . . . . . . 1 . . Retrieve Study 13 | . . . 2 . . . . 1 1 . 2 . . 2 . . . . 2 . . . . . . 3 . . Garrison Access Hacks 16 | . . . . . . 1 . 1 2 . 1 4 . 2 . . . . 2 . 1 . . . . 1 1 . Seal Access 16 | . . . . . . 1 . 1 2 . 1 4 . 2 . . . . 2 . 1 . . . . 1 1 . Unauthorized Hacks 129 | . . . . . . . . . . . . 19 . 16 . . . . 29 . 13 . . . . 21 13 18 Terminals 61 | . . . . . . . . . . . . 8 . 3 . . . . 19 . 5 . . . . 9 12 5 Track 8 | . . . . . . . . . . . . 1 . . . . . . 4 . . . . . . 1 1 1 Assimilate 7 | . . . . . . . . . . . . . . 1 . . . . 4 . 1 . . . . . 1 . Botnet 19 | . . . . . . . . . . . . 3 . 1 . . . . 4 . 2 . . . . 3 3 3 Disrupt 7 | . . . . . . . . . . . . 1 . 1 . . . . 4 . . . . . . . 1 . Operators 4 | . . . . . . . . . . . . 1 . . . . . . 2 . . . . . . . . 1 Skim 16 | . . . . . . . . . . . . 2 . . . . . . 1 . 2 . . . . 5 6 . Fabricators 24 | . . . . . . . . . . . . 2 . 3 . . . . 3 . 2 . . . . 5 . 9 Report 3 | . . . . . . . . . . . . . . 1 . . . . . . . . . . . 1 . 1 Prioritize 12 | . . . . . . . . . . . . 1 . 1 . . . . 2 . 2 . . . . 2 . 4 Liberate 1 | . . . . . . . . . . . . . . . . . . . . . . . . . . 1 . . Fabnet 3 | . . . . . . . . . . . . . . . . . . . . . . . . . . . . 3 Haulers 5 | . . . . . . . . . . . . 1 . 1 . . . . 1 . . . . . . 1 . 1 Repair Stations 2 | . . . . . . . . . . . . . . . . . . . 1 . . . . . . 1 . . Mechanics 2 | . . . . . . . . . . . . . . . . . . . 1 . . . . . . 1 . . Recycling Units 40 | . . . . . . . . . . . . 9 . 10 . . . . 6 . 6 . . . . 6 . 3 Monitor 6 | . . . . . . . . . . . . 2 . 1 . . . . 1 . 1 . . . . 1 . . Reject 13 | . . . . . . . . . . . . 3 . 4 . . . . 2 . 2 . . . . 2 . . Recyclers 6 | . . . . . . . . . . . . 1 . 1 . . . . 1 . 1 . . . . 1 . 1 Mask 15 | . . . . . . . . . . . . 3 . 4 . . . . 2 . 2 . . . . 2 . 2 Scanalyzers 2 | . . . . . . . . . . . . . . . . . . . . . . . . . . . 1 1 Researchers 2 | . . . . . . . . . . . . . . . . . . . . . . . . . . . 1 1 Garrison Access . | . . . . . . . . . . . . . . . . . . . . . . . . . . . . . Data Cores Recovered 8 | . 1 . . . . . . 2 1 . . . . . . . . . 1 . . . . . . 1 1 1 Used 2 | . . . . . . . . 1 . . . . . . . . . . . . . . . . . 1 . . Hacking Detections 193 | . 5 1 10 . 5 8 . 20 17 . 17 19 . 24 . . . . 17 . 13 . . . 1 16 9 11 Full Trace Events 43 | . . . 3 . . 2 . 6 4 . 4 3 . 6 . . . . 3 . 2 . . . . 5 1 4 Feedback Events 3 | . . . . . . 1 . 1 1 . . . . . . . . . . . . . . . . . . . Corruption 2 | . . . . . . 1 . 1 . . . . . . . . . . . . . . . . . . . . Hackware Fried 1 | . . . . . . . . . 1 . . . . . . . . . . . . . . . . . . . Feedback Blocked 1 | . . . . . . . . . . . . . . . . . . . . . . . . . . 1 . . Robot Schematics Acquired 10 | . . . . . . . . 1 . . . 1 . . . . . . . . . . . . . 1 6 1 Robots Built 3 | . . . . . . . . 2 . . . . . . . . . . . . . . . . . 1 . . Authchips 1 | . . . . . . . . 1 . . . . . . . . . . . . . . . . . . . . Time 142 | . . . . . . . . 96 . . . . . . . . . . . . . . . . . 46 . . Total Robot Build Rating 13 | . . . . . . . . 6 . . . . . . . . . . . . . . . . . 7 . . Part Schematics Acquired 48 | . . . 1 . . 1 . 4 2 . 3 8 . 6 . . . . 1 . . . . . . 1 15 6 Parts Built 29 | . . . . . . 1 . 6 2 . 4 3 . 5 . . . . 1 . 1 . . . . 1 . 5 Authchips 1 | . . . . . . . . 1 . . . . . . . . . . . . . . . . . . . . Time 1604 | . . . . . . 95 . 296 134 . 265 186 . 195 . . . . 130 . 160 . . . . 34 . 109 Total Part Build Rating 158 | . . . . . . 5 . 24 8 . 24 17 . 26 . . . . 7 . 5 . . . . 8 . 34 Part Studies Acquired 12 | . . . 2 . . . . 1 1 . 1 . . 2 . . . . 2 . . . . . . 3 . . Parts Repaired 17 | . . . 2 . . 1 . . 1 . . 5 . 2 . . . . 1 . 2 . . . . 3 . . Time 833 | . . . 52 . . 51 . . 44 . . 379 . 39 . . . . 80 . 88 . . . . 100 . . Parts Recycled . | . . . . . . . . . . . . . . . . . . . . . . . . . . . . . Recycled Matter 75 | . . . . . . . . . . . . 60 . 7 . . . . . . . . . . . 8 . . Retrieved Matter 14 | . . . . . . . . . . . . 6 . . . . . . . . . . . . . 8 . . Retrieved Components 24 | . 3 . . . . 2 . . . . . 10 . 4 . . . . 2 . 1 . . . . 2 . . Parts Scanalyzed 9 | . . . 2 . . . . 2 1 . 1 1 . 1 . . . . . . . . . . . 1 . . Part Schematics Acquired 8 | . . . 1 . . . . 2 1 . 1 1 . 1 . . . . . . . . . . . 1 . . Parts Damaged . | . . . . . . . . . . . . . . . . . . . . . . . . . . . . . Bothacking | -11 -10 -10 -9 -9 -8 -7 -7 -7 -6 -6 -6 -5 -5 -5 -5 -5 -5 -4 -4 -4 -4 -4 -4 -4 -3 -3 -3 -3 ------------ Run | Yrd Mat Min Mat Min Mat Fac Was Fac Fac Was Fac Fac Was Fac Upp Upp War Pro Fac Was Fac Upp Upp Zhi Pro Res Qua Frg Used RIF Installer . | . . . . . . . . . . . . . . . . . . . . . . . . . . . . . Robots Hacked 11 | . . . . . 1 . . . 3 . . 1 . . . . 4 . 2 . . . . . . . . . Non-combat 7 | . . . . . . . . . 3 . . 1 . . . . 1 . 2 . . . . . . . . . Combat 4 | . . . . . 1 . . . . . . . . . . . 3 . . . . . . . . . . . Robot Hacks Applied 13 | . . . . . 1 . . . 4 . . 1 . . . . 4 . 3 . . . . . . . . . parse_system 6 | . . . . . 1 . . . . . . . . . . . 4 . 1 . . . . . . . . . no_distress 1 | . . . . . . . . . 1 . . . . . . . . . . . . . . . . . . . find_chute 4 | . . . . . . . . . 2 . . 1 . . . . . . 1 . . . . . . . . . find_recycling 1 | . . . . . . . . . 1 . . . . . . . . . . . . . . . . . . . find_station 1 | . . . . . . . . . . . . . . . . . . . 1 . . . . . . . . . Relay Couplers Released 8 | . . . . . . . . . 3 . . 3 . . . . . . . . . . . . . . . 2 Machine Destruction 2 | . . . . . . . . . . . . . . . . . . . . . . . . . . . . 2 Programmers 6 | . . . . . . . . . 3 . . 3 . . . . . . . . . . . . . . . . Fabnet Peak Effective % . | . . . . . . . . . . . . . . . . . . . . . . . . . . . . . Robots Rewired 2 | . . . . . . . . . . . . . . . . . . . . . . 2 . . . . . . Allies Hacked 5 | . . . . . . . . . . . . . . 4 . . . . . . . . . . . 1 . . Hacks Repelled 1 | . . . . . . . . . . . . . . . . . . . 1 . . . . . . . . . Allies | -11 -10 -10 -9 -9 -8 -7 -7 -7 -6 -6 -6 -5 -5 -5 -5 -5 -5 -4 -4 -4 -4 -4 -4 -4 -3 -3 -3 -3 -------- Run | Yrd Mat Min Mat Min Mat Fac Was Fac Fac Was Fac Fac Was Fac Upp Upp War Pro Fac Was Fac Upp Upp Zhi Pro Res Qua Frg Total Allies 67 | . . . . . . . . 2 . 18 . . 20 1 . . . . 2 20 . 2 . . . 1 1 . Largest Group 20 | . . . . . . . . 1 . 18 11 . 20 18 . . . . 1 19 15 2 2 2 2 1 1 . Highest-Rated Group 764 | . . . . . . . . 23 . 638 403 . 764 672 . . . . 26 702 600 92 92 92 85 33 45 . Highest-Rated Ally 50 | . . . . . . . . 23 . 50 46 . 50 50 . . . . 26 50 50 46 46 46 46 33 45 . Total Orders 10 | . . . . . . . . 4 . . . . . . . . . . . . . 2 2 2 . . . . STAY 5 | . . . . . . . . 1 . . . . . . . . . . . . . 1 1 2 . . . . FOLLOW 2 | . . . . . . . . . . . . . . . . . . . . . . 1 1 . . . . . AID 3 | . . . . . . . . 3 . . . . . . . . . . . . . . . . . . . . Ally Attacks 569 | . . . . . . . . . . 104 37 . . 151 . . . . . 71 168 4 10 15 9 . . . Total Damage 15968 | . . . . . . . . . . 3898 524 . . 3111 . . . . . 3318 4100 70 299 424 224 . . . Kills 74 | . . . . . . . . . . 11 1 . . 25 . . . . . 9 24 1 2 . 1 . . . Allies Corrupted 9 | . . . . . . . . . . . 5 . . 2 . . . . . . 2 . . . . . . . Allies Melted . | . . . . . . . . . . . . . . . . . . . . . . . . . . . . . Intel | -11 -10 -10 -9 -9 -8 -7 -7 -7 -6 -6 -6 -5 -5 -5 -5 -5 -5 -4 -4 -4 -4 -4 -4 -4 -3 -3 -3 -3 ------- Run | Yrd Mat Min Mat Min Mat Fac Was Fac Fac Was Fac Fac Was Fac Upp Upp War Pro Fac Was Fac Upp Upp Zhi Pro Res Qua Frg Active Infowar (turns) 18842 | 14 722 322 869 204 1821 810 52 961 1308 207 926 1403 191 673 65 107 450 161 795 221 1455 501 341 456 695 1707 652 753 Optics 7136 | . . . . . . . . . . . . . . . . . 208 161 795 221 1455 501 341 456 695 1707 596 . Sensors 14026 | . . . 255 . 1821 711 52 769 994 107 806 1386 191 618 65 91 364 161 684 76 936 501 341 337 645 1515 425 175 Terrain 1308 | . . 302 589 204 213 . . . . . . . . . . . . . . . . . . . . . . . Structural 1569 | . . . . . . 26 . 85 234 207 454 . . . . . . . 266 192 2 . . 103 . . . . Seismic 781 | 14 722 20 25 . . . . . . . . . . . . . . . . . . . . . . . . . Machine Analysis 119 | . . . . . . 119 . . . . . . . . . . . . . . . . . . . . . . Cloaking 672 | . . . . . . . . . . . . . . . . . 23 . 8 . . . . . 46 338 69 188 Jamming 872 | . . . . . . . . . . . . 5 . . . . . . 81 . . . . . . 200 230 356 ECM 880 | . . . . . . 73 . 107 289 . 48 81 . 65 . 16 . . . . 19 . . . . 58 12 112 Robot Analysis Total 10 | . . . . . . . . . 2 . . 2 . . . . . . . . . . . 4 . . 1 1 Derelict Logs Recovered 10 | . . 1 . 2 . . . . . . . . . . 1 2 . . . . . 2 2 . . . . . Drone Launches . | . . . . . . . . . . . . . . . . . . . . . . . . . . . . . Drone Recoveries . | . . . . . . . . . . . . . . . . . . . . . . . . . . . . . Exploration | -11 -10 -10 -9 -9 -8 -7 -7 -7 -6 -6 -6 -5 -5 -5 -5 -5 -5 -4 -4 -4 -4 -4 -4 -4 -3 -3 -3 -3 ------------- Run | Yrd Mat Min Mat Min Mat Fac Was Fac Fac Was Fac Fac Was Fac Upp Upp War Pro Fac Was Fac Upp Upp Zhi Pro Res Qua Frg Turns Passed 26598 | 98 1339 374 4417 1540 2031 833 52 1312 1694 207 1058 1689 191 743 74 115 606 161 795 221 1455 501 341 456 695 1707 652 1241 Spaces Moved 32802 | 47 481 139 1587 587 622 1201 119 2316 2500 234 1959 2855 260 1716 262 389 1472 350 2226 389 2663 1003 778 616 595 2245 1542 1649 Core 22 | 7 . . . . . . . . 14 . 1 . . . . . . . . . . . . . . . . . Treads 3380 | 40 481 97 1552 587 622 . . . . . . . . . . . . . . . . . . . . . . 1 Legs 453 | . . 42 35 . . . . . . . . . . . . . . . . . . . . . . . . 376 Wheels . | . . . . . . . . . . . . . . . . . . . . . . . . . . . . . Hover 2 | . . . . . . . . . . . . . . . . . . . . . . . . . . . . 2 Flight 28945 | . . . . . . 1201 119 2316 2486 234 1958 2855 260 1716 262 389 1472 350 2226 389 2663 1003 778 616 595 2245 1542 1270 Fastest Speed 5 | 50 160 240 160 247 246 28 28 26 14 26 14 11 24 11 24 11 11 24 5 22 6 23 16 23 87 6 6 5 Average Speed 49 | 143 180 247 234 247 246 31 28 27 28 26 26 23 24 23 24 23 24 24 19 37 23 23 22 44 95 35 17 37 Slowest Speed 400 | 160 320 400 320 247 247 308 28 95 300 26 300 24 24 92 24 24 94 24 24 91 29 28 23 96 96 101 85 280 Overloaded Moves 538 | . . . . . . . . . 33 . 15 18 . 18 . 9 3 . 144 . 47 . 2 16 3 12 23 195 Propulsion Burnouts 1 | . . . . . . . . . . . . . . . . . . . . . . . . . . . . 1 Robots Hopped 94 | . . . . . . 9 2 3 11 . 2 10 . 11 . . . . 9 . 15 2 1 . . 3 8 8 Potential Cave-ins 68 | . . . . . . . . . . . . . . . . . . . 6 . . . . . . . . 62 Cave-ins Triggered 3 | . . . . . . . . . . . . . . . . . . . . . . . . . . . . 3 Teleports 1 | . . . . . . . . . . . . . . . . . . . . . . . . . . . . 1 Exploration Rate (%) 64 | 4 62 30 91 94 54 30 96 44 48 91 58 51 95 45 54 54 91 60 55 93 44 80 82 95 77 56 78 53 Regions Visited 28 Branch Regions 12 Pre-discovered Areas 5 | . . . . 1 . . . . . . . . . . . 1 . . . . . . . 3 . . . . Known Exits Taken 16 | . . . . 1 1 . . 1 . . 1 . . 1 1 1 1 1 . . 1 1 1 1 1 1 1 . Unknown Exits Taken 4 | 1 1 1 1 . . . . . . . . . . . . . . . . . . . . . . . . . Scrap Searched 11 | . . . . 2 . . . . . . . . . . . 3 . 1 . . . 2 2 . 1 . . . Spaces Dug 587 | . . 1 10 22 11 34 . 45 53 2 55 92 . 27 20 1 . 3 50 . 8 4 7 . 5 36 31 70 Terrain Destroyed 1303 | . . 1 69 61 14 34 . 123 124 2 65 173 . 152 20 1 3 3 121 2 117 13 28 2 11 59 31 74 Melee 332 | . . 1 9 . 11 34 . 45 53 2 38 42 . 24 . 1 . 3 14 . . . . . . 12 31 12 Projectile 301 | . . . . . . . . . . . . 42 . 4 . . 3 . 29 2 80 11 8 2 11 47 . 62 AOE 670 | . . . 60 61 3 . . 78 71 . 27 89 . 124 20 . . . 78 . 37 2 20 . . . . . Terrain Rammed . | . . . . . . . . . . . . . . . . . . . . . . . . . . . . . Walls Destroyed . | . . . . . . . . . . . . . . . . . . . . . . . . . . . . . Machines Disabled . | . . . . . . . . . . . . . . . . . . . . . . . . . . . . . Actions | -11 -10 -10 -9 -9 -8 -7 -7 -7 -6 -6 -6 -5 -5 -5 -5 -5 -5 -4 -4 -4 -4 -4 -4 -4 -3 -3 -3 -3 --------- Run | Yrd Mat Min Mat Min Mat Fac Was Fac Fac Was Fac Fac Was Fac Upp Upp War Pro Fac Was Fac Upp Upp Zhi Pro Res Qua Frg Total 40735 | 63 873 154 2050 640 951 1539 135 2811 3227 375 2395 3686 369 1979 268 408 1639 419 2490 464 3207 1221 917 785 708 3007 1785 2170 Wait 4986 | 1 307 . 185 16 140 227 12 336 470 135 337 585 98 150 . 14 49 64 146 61 245 170 97 134 99 563 128 217 Move 32595 | 46 480 138 1586 586 621 1183 115 2309 2478 233 1954 2835 259 1695 261 388 1471 349 2209 388 2632 998 775 615 594 2238 1527 1632 Hop 86 | . . . . . . 9 1 3 11 . 2 10 . 9 . . . . 8 . 15 2 1 . . 3 6 6 Pick Up 243 | 3 17 1 53 2 9 10 3 12 7 1 4 22 . 11 . . 10 . 16 2 7 1 5 5 1 4 7 30 Fast Attach 166 | 5 3 2 10 . 3 7 1 9 7 1 . 15 . 7 1 1 11 . 4 2 6 . 2 4 . 22 7 36 Attach 135 | 1 5 1 6 1 6 9 . 7 18 . . 11 . 5 . 1 6 . 11 2 3 1 5 3 . 3 . 30 Detach 99 | . 4 2 6 . 2 6 . 6 13 1 . 6 . 6 . 1 5 . 2 2 . . 1 1 . 4 . 31 Swap 369 | . 4 2 55 11 37 15 . 24 53 1 19 26 . 22 5 2 6 2 17 2 7 1 . 2 5 24 10 17 Drop 263 | . 7 . 30 1 13 17 3 16 11 1 5 25 . 16 . . 19 . 10 4 15 2 7 6 1 12 13 29 Fire 850 | 7 44 7 86 21 91 . . 6 7 . 3 63 . 8 1 . 12 . 28 1 272 44 24 15 8 91 2 9 Melee 729 | . 1 1 29 1 21 56 . 83 100 2 48 57 12 32 . 1 50 4 34 . . . . . . 28 73 96 Ram 4 | . . . . . . . . . . . . . . . . . . . 1 . . . . . . 3 . . Kick . | . . . . . . . . . . . . . . . . . . . . . . . . . . . . . Crush 8 | . 1 . 4 1 2 . . . . . . . . . . . . . . . . . . . . . . . Escape Stasis 89 | . . . . . . . . . . . 17 6 . . . . . . . . 5 . . . . 12 12 37 Rewire 2 | . . . . . . . . . . . . . . . . . . . . . . 2 . . . . . . Trap 99 | . . . . . 6 . . . 40 . 6 25 . 18 . . . . 4 . . . . . . . . . Miscellaneous 12 | . . . . . . . . . 12 . . . . . . . . . . . . . . . . . . . Route ------- -11/Scrapyard -10/Materials (discovered 3 exits: *Mat x2 / *Min) -10/Mines (discovered 3 exits: *Mat x2 / [*Sub]) -9/Materials (discovered 4 exits: *Mat x3 / [*Min]) -9/Mines (discovered 3 exits: *Mat x2 / *Exi) -8/Materials (discovered 2 exits: *Fac x2) -7/Factory (discovered 2 exits: *Sto / *Low) -7/Waste -7/Factory (discovered 7 exits: *Fac x3 / *Sto x2 / Low x2) -6/Factory (discovered 8 exits: Fac x4 / *Low x2 / Ext x2) -6/Waste -6/Factory (discovered 3 exits: *Fac x2 / *Low) -5/Factory (discovered 6 exits: *Fac x4 / *Upp x2) -5/Waste -5/Factory (discovered 3 exits: *Fac / *Upp x2) -5/Upper Caves -5/Upper Caves -5/Warlord -4/Proximity Caves -4/Factory (discovered 4 exits: *Res x2 / Upp x2) -4/Waste -4/Factory (discovered 4 exits: *Res x2 / *Upp x2) -4/Upper Caves -4/Upper Caves (discovered 2 exits: *Res / *Zhi) -4/Zhirov -3/Proximity Caves -3/Research (discovered 6 exits: *Res x3 / Arm / *Qua x2) -3/Quarantine (discovered 3 exits: *Res / [*Sec] / *Frg) -3/Protoforge History --------- Turn | Location | Event 4 | -11/Scrapyard | Discovered new exit (range 16) 99 | -11/Scrapyard | Entered Materials 311 | -10/Materials | Build established: Mutant 920 | -10/Materials | Discovered new exit (range 13) 1099 | -10/Materials | Discovered new exit (range 16) 1215 | -10/Materials | Discovered new exit (range 15) 1438 | -10/Materials | Entered Mines 1479 | -10/Mines | Build established: Scavenger-Mutant 1498 | -10/Mines | Discovered new exit (range 3) 1611 | -10/Mines | Discovered new exit (range 15) 1664 | -10/Mines | Learned Materials trap positions 1731 | -10/Mines | Discovered new exit (range 8) 1805 | -10/Mines | Assembled infested the area 1810 | -10/Mines | Assisted by a Guerilla fighting off Assembled 1812 | -10/Mines | Entered Materials 1812 | -9/Materials | Evolved 2 slots: Propulsion x2 1813 | -9/Materials | Loaded intel: 16 trap records 1886 | -9/Materials | Lost 3 parts (1p1n1u) 2182 | -9/Materials | Discovered new exit (range 15) 2236 | -9/Materials | Build established: Mutant 2601 | -9/Materials | Central database locked down 3351 | -9/Materials | Discovered new exit (range 14) 3451 | -9/Materials | Identified exit to Materials 4455 | -9/Materials | Repaired Lgt. Treads 4482 | -9/Materials | Repaired Huge Storage Unit 6229 | -9/Materials | Entered Mines 6593 | -9/Mines | Learned location of Zion (-6) 6822 | -9/Mines | Discovered exit to Materials (range 8) 6931 | -9/Mines | Learned 2 Materials zone layouts 6936 | -9/Mines | Discovered exit to Materials (range 5) 7111 | -9/Mines | Received a Rocket Launcher from a helpful Derelict 7429 | -9/Mines | Discovered new exit (range 6) 7489 | -9/Mines | Identified exit to Exiles 7769 | -9/Mines | Entered Materials 7769 | -8/Materials | Evolved 2 slots: Utility x2 7770 | -8/Materials | Identified exit to Factory 9611 | -8/Materials | Garrison activated, responded to threat 9743 | -8/Materials | Discovered exit to Factory (range 11) 9800 | -8/Materials | Entered Factory 9800 | -7/Factory | Evolved 2 slots: Utility x2 9981 | -7/Factory | Discovered new exit (range 5) 9982 | -7/Factory | Identified exit to Lower Caves 10132 | -7/Factory | Fabricated Imp. Hacking Suite? 10367 | -7/Factory | Repaired Imp. Flight Unit 10378 | -7/Factory | Discovered new exit (range 5) 10379 | -7/Factory | Identified exit to Storage 10633 | -7/Factory | Sucked down chute 10633 | -7/Factory | Entered Waste 10639 | -7/Waste | Spotted C-40 Crusher 10643 | -7/Waste | Spotted C-40 Crusher 10648 | -7/Waste | EMP discharged 10648 | -7/Waste | System corruption reached 10% 10650 | -7/Waste | Spotted C-40 Crusher 10651 | -7/Waste | Spotted C-40 Crusher 10656 | -7/Waste | Build established: Hacker-Sprinter 10659 | -7/Waste | Spotted C-40 Crusher 10661 | -7/Waste | Discovered new exit (range 14) 10664 | -7/Waste | Spotted C-40 Crusher 10672 | -7/Waste | Identified exit to Factory 10685 | -7/Waste | Entered Factory 10765 | -7/Factory | Found Rocket Array 10873 | -7/Factory | Fabricated Cld. VTOL Module? 10953 | -7/Factory | Fabricated Cld. VTOL Module? 11012 | -7/Factory | Fabricated Cld. VTOL Module? 11251 | -7/Factory | Allied Derelicts emerged from ambush trap array 11330 | -7/Factory | Discovered new exit (range 15) 11334 | -7/Factory | Identified exit to Factory 11381 | -7/Factory | Fabricated M-28 Smith (x1) 11412 | -7/Factory | Fabricated System Restoration Module (x2) 11579 | -7/Factory | Discovered exit to Factory (range 12) 11609 | -7/Factory | Garrison activated, responded to threat 11654 | -7/Factory | Fabricated M-28 Smith (x1) 11742 | -7/Factory | Fabricated Cld. VTOL Module? 11757 | -7/Factory | Central database locked down 11912 | -7/Factory | Discovered exit to Factory (range 15) 11997 | -7/Factory | Entered another Factory area 11997 | -6/Factory | Evolved 2 slots: Utility x2 12014 | -6/Factory | Identified exit to Lower Caves 12014 | -6/Factory | Identified exit to Extension 12151 | -6/Factory | Fabricated Cld. VTOL Module? 12267 | -6/Factory | Repaired Greatsword+? 12294 | -6/Factory | Fabricated Cld. VTOL Module? 12639 | -6/Factory | Found Rocket Array 13163 | -6/Factory | Hacking Suite fried by hacking feedback 13468 | -6/Factory | Spotted B-75 Beast 13657 | -6/Factory | Identified exit to Factory 13691 | -6/Factory | Manually triggered Chute Trap 13691 | -6/Factory | Sucked down chute 13691 | -6/Factory | Entered Waste 13694 | -6/Waste | Spotted C-40 Crusher 13705 | -6/Waste | Spotted C-40 Crusher 13706 | -6/Waste | EMP discharged 13708 | -6/Waste | Spotted C-40 Crusher 13722 | -6/Waste | Spotted C-40 Crusher 13722 | -6/Waste | Spotted C-40 Crusher 13723 | -6/Waste | Spotted C-40 Crusher 13733 | -6/Waste | Met Warlord forces unprepared to attack 13737 | -6/Waste | Allies destroyed C-40 Crusher 13795 | -6/Waste | Lost 5 allies 13806 | -6/Waste | EMP discharged 13806 | -6/Waste | System corruption reached 10% 13827 | -6/Waste | Discovered new exit (range 16) 13836 | -6/Waste | Identified exit to Factory 13898 | -6/Waste | Entered Factory 13898 | -6/Factory | Accompanied by 11 allies 13999 | -6/Factory | Lost 3 allies 14028 | -6/Factory | Build established: Hacker-Scout 14055 | -6/Factory | Discovered exit to Factory (range 4) 14292 | -6/Factory | Fabricated Adv. Hacking Suite (x1) 14293 | -6/Factory | Spotted B-75 Beast 14296 | -6/Factory | Discovered exit to Factory (range 15) 14486 | -6/Factory | Fabricated Adv. Hacking Suite? 14721 | -6/Factory | Discovered exit to Lower Caves (range 11) 14808 | -6/Factory | Fabricated Adv. Hacking Suite? 14917 | -6/Factory | Fabricated Adv. Hacking Suite (x1) 14956 | -6/Factory | Entered another Factory area 14956 | -5/Factory | Evolved 2 slots: Propulsion x1, Utility x1 14962 | -5/Factory | Discovered new exit (range 9) 14966 | -5/Factory | Identified exit to Factory 14984 | -5/Factory | Build established: Wizard-Sprinter 15033 | -5/Factory | Repaired Cld. VTOL Module 15186 | -5/Factory | Fabricated Exp. Propulsion Shielding (x1) 15510 | -5/Factory | Fabricated Tri-rail Accelerator? 15588 | -5/Factory | Spotted B-75 Beast 15661 | -5/Factory | Identified exit to Upper Caves 15676 | -5/Factory | Unchained authorized (DW-4LL) 15739 | -5/Factory | Fabricated Adv. Hacking Suite (x1) 15831 | -5/Factory | DW-4LL burst out of a wall 16100 | -5/Factory | Destroyed DW-4LL 16282 | -5/Factory | Repaired Tri-rail Accelerator 16364 | -5/Factory | Repaired Cld. Cesium-ion Thruster 16435 | -5/Factory | Repaired Cld. VTOL Module 16456 | -5/Factory | First assault squad dispatched 16507 | -5/Factory | Repaired Cld. VTOL Module 16645 | -5/Factory | Manually triggered Chute Trap 16645 | -5/Factory | Sucked down chute 16645 | -5/Factory | Entered Waste 16646 | -5/Waste | Joined by Warlord forces that had cleared the area 16794 | -5/Waste | Discovered new exit (range 16) 16810 | -5/Waste | Identified exit to Factory 16836 | -5/Waste | Entered Factory 16836 | -5/Factory | Accompanied by 18 allies 16886 | -5/Factory | Discovered exit to Upper Caves (range 15) 16915 | -5/Factory | Repaired Imp. Utility Shielding 16969 | -5/Factory | Fabricated Adv. Sensor Array (x2) 16979 | -5/Factory | Fabricated Adv. Signal Interpreter (x2) 17136 | -5/Factory | First assault squad dispatched 17179 | -5/Factory | Fabricated Adv. Hacking Suite (x1) 17209 | -5/Factory | Lost 4 allies 17311 | -5/Factory | Discovered exit to Factory (range 12) 17362 | -5/Factory | Central database locked down 17430 | -5/Factory | Repaired Micro-nuke Launcher+ 17579 | -5/Factory | Entered Upper Caves 17611 | -5/Upper Caves | Identified exit to Upper Caves 17627 | -5/Upper Caves | Spotted B-75 Beast 17634 | -5/Upper Caves | Encountered a Warlord checkpoint 17653 | -5/Upper Caves | Entered another Upper Caves area 17684 | -5/Upper Caves | Learned Factory interactive machine intel 17703 | -5/Upper Caves | Learned location of Warlord (-5) 17745 | -5/Upper Caves | Spotted B-75 Beast 17759 | -5/Upper Caves | Found Alien Artifact 17759 | -5/Upper Caves | Identified Core Expander 17759 | -5/Upper Caves | Installed Core Expander, added new Power slot 17767 | -5/Upper Caves | Discovered new exit (range 5) 17768 | -5/Upper Caves | Identified exit to Warlord 17768 | -5/Upper Caves | Entered Warlord 17776 | -5/Warlord | System corruption cleaned by Quarantine Array 17791 | -5/Warlord | Discovered new exit (range 14) 17877 | -5/Warlord | Found Prototype Special Weapon 17877 | -5/Warlord | Identified RU-N14's Throwing Claymores v3 17879 | -5/Warlord | Found RU-N14's Throwing Claymores v3 17880 | -5/Warlord | Warlord's base attacked by MAIN.C 18152 | -5/Warlord | Found Prototype Device 18152 | -5/Warlord | Identified Exp. Focal Shield 18163 | -5/Warlord | Found Prototype Device 18163 | -5/Warlord | Identified Exp. Cloaking Device 18166 | -5/Warlord | Found Prototype Processor 18166 | -5/Warlord | Identified Spectral Analyzer 18197 | -5/Warlord | Found Prototype Energy Gun 18197 | -5/Warlord | Identified Vortex Rifle 18200 | -5/Warlord | Found Prototype Energy Cannon 18200 | -5/Warlord | Identified Vortex Driver 18217 | -5/Warlord | Met Warlord 18230 | -5/Warlord | Warlord forces counterattacked 18284 | -5/Warlord | Spotted Striker 18286 | -5/Warlord | P-70 Sage assimilated allied HT-FRS(Y) 18296 | -5/Warlord | Spotted Striker 18324 | -5/Warlord | Opened side exit 18326 | -5/Warlord | Spotted Executioner 18365 | -5/Warlord | Destroyed Executioner 18369 | -5/Warlord | Found Prototype Processor 18374 | -5/Warlord | Identified exit to Proximity Caves 18374 | -5/Warlord | Entered Proximity Caves 18377 | -4/Proximity Caves | Lost 7 allies 18509 | -4/Proximity Caves | Discovered exit to Factory (range 8) 18525 | -4/Proximity Caves | Acquired the password to a Derelict Tinkerer's latest research 18535 | -4/Proximity Caves | Entered Factory 18535 | -4/Factory | Evolved 2 slots: Propulsion x1, Utility x1 18536 | -4/Factory | Loaded intel: 54 interactive machine locations 18556 | -4/Factory | Build established: Wizard-Scout 18557 | -4/Factory | Unchained authorized (QV-33N) 18650 | -4/Factory | Repaired Exp. Propulsion Shielding 18658 | -4/Factory | Spotted B-86 Titan 18716 | -4/Factory | Spotted B-86 Titan 18853 | -4/Factory | Identified exit to Upper Caves 18884 | -4/Factory | Discovered new exit (range 6) 18889 | -4/Factory | Identified Exp. Core Analyzer 18902 | -4/Factory | Discovered new exit (range 12) 18914 | -4/Factory | Destroyed 7 combat bots 18922 | -4/Factory | Identified exit to Research 19035 | -4/Factory | Search patrols dispatched 19112 | -4/Factory | Fabricated Exp. Hacking Suite (x1) 19169 | -4/Factory | Central database locked down 19330 | -4/Factory | Manually triggered Chute Trap 19330 | -4/Factory | Sucked down chute 19330 | -4/Factory | Entered Waste 19331 | -4/Waste | Met a frightened Derelict 19333 | -4/Waste | Spotted C-40 Crusher 19345 | -4/Waste | Spotted C-40 Crusher 19357 | -4/Waste | Spotted C-40 Crusher 19380 | -4/Waste | Spotted C-40 Crusher 19411 | -4/Waste | Spotted C-40 Crusher 19411 | -4/Waste | Spotted C-40 Crusher 19426 | -4/Waste | Discovered new exit (range 13) 19441 | -4/Waste | Warlord forces began an assault 19462 | -4/Waste | Allies destroyed C-40 Crusher 19463 | -4/Waste | Allies destroyed C-40 Crusher 19465 | -4/Waste | Allies destroyed C-40 Crusher 19476 | -4/Waste | Destroyed C-40 Crusher 19476 | -4/Waste | Allies destroyed C-40 Crusher 19505 | -4/Waste | Lost 4 allies 19512 | -4/Waste | Identified exit to Factory 19551 | -4/Waste | Entered Factory 19551 | -4/Factory | Accompanied by 15 allies 19591 | -4/Factory | Spotted B-86 Titan 19599 | -4/Factory | Garrison activated, responded to threat 19616 | -4/Factory | Destroyed B-86 Titan 19751 | -4/Factory | Fabricated Exp. Targeting Computer? 19793 | -4/Factory | Lost 4 allies 19795 | -4/Factory | Build established: Hacker-Scout 19801 | -4/Factory | First assault squad dispatched 19867 | -4/Factory | Discovered exit to Research (range 23) 19919 | -4/Factory | Discovered exit to Research (range 23) 19951 | -4/Factory | Repaired Tri-rail Accelerator 20143 | -4/Factory | Lost 6 allies 20149 | -4/Factory | Spotted B-86 Titan 20545 | -4/Factory | Repaired Tri-rail Accelerator 21006 | -4/Factory | Entered Upper Caves 21008 | -4/Upper Caves | Learned Research trap positions 21148 | -4/Upper Caves | Attacked by a faux Warlord 21444 | -4/Upper Caves | Discovered new exit (range 15) 21453 | -4/Upper Caves | Learned Research emergency access door positions 21473 | -4/Upper Caves | Identified exit to Upper Caves 21507 | -4/Upper Caves | Entered another Upper Caves area 21507 | -4/Upper Caves | Accompanied by 2 allies 21526 | -4/Upper Caves | Discovered exit to Research (range 13) 21528 | -4/Upper Caves | Learned location of 1 exit from Research 21587 | -4/Upper Caves | Learned Research terminal intel 21776 | -4/Upper Caves | Attacked by a delusional Derelict stockpiling parts 21819 | -4/Upper Caves | Encountered a Warlord checkpoint 21819 | -4/Upper Caves | Discovered new exit (range 10) 21822 | -4/Upper Caves | Identified exit to Zhirov 21848 | -4/Upper Caves | Entered Zhirov 21848 | -4/Zhirov | Accompanied by 2 allies 21848 | -4/Zhirov | Discovered new exit (range 3) 21853 | -4/Zhirov | Met Zhirov 21857 | -4/Zhirov | Learned location of Quarantine (-3) 21857 | -4/Zhirov | Learned location of Testing (-2) 21857 | -4/Zhirov | Learned location of Command (-1) 21859 | -4/Zhirov | Zhirov requested help retrieving the SGEMP Prototype 21863 | -4/Zhirov | Found Alien Artifact 21863 | -4/Zhirov | Identified Integrated Reactor 21863 | -4/Zhirov | Installed Integrated Reactor, increased core energy generation (+10) 21897 | -4/Zhirov | Found Alien Artifact 21907 | -4/Zhirov | Identified exit to Proximity Caves 22009 | -4/Zhirov | Cloak Generator disabled 22009 | -4/Zhirov | Attacked by Zhirov 22019 | -4/Zhirov | Enhanced Grunts warped into view 22036 | -4/Zhirov | Destroyed Perun 22036 | -4/Zhirov | Destroyed Svarog 22043 | -4/Zhirov | Found Prototype Hackware 22043 | -4/Zhirov | Identified Deep Network Scanner 22045 | -4/Zhirov | Found Prototype Hackware 22045 | -4/Zhirov | Identified Quantum Router 22053 | -4/Zhirov | Zhirov detonated his lab 22057 | -4/Zhirov | Found Zhirov Special 22304 | -4/Zhirov | Entered Proximity Caves 22304 | -3/Proximity Caves | Accompanied by 2 allies 22324 | -3/Proximity Caves | Build established: Wizard-Skirmisher 22624 | -3/Proximity Caves | Spotted B-86 Titan 22985 | -3/Proximity Caves | Discovered exit to Research (range 14) 22999 | -3/Proximity Caves | Attracted the attention of an 0b10 checkpoint 22999 | -3/Proximity Caves | Entered Research 22999 | -3/Research | Evolved 2 slots: Propulsion x1, Weapon x1 23000 | -3/Research | Identified exit to Research 23001 | -3/Research | Loaded intel: 86 trap records 23003 | -3/Research | Loaded intel: 21 terminal locations 23026 | -3/Research | Identified exit to Armory 23026 | -3/Research | Identified exit to Quarantine 23065 | -3/Research | Repaired Cld. VTOL Module 23298 | -3/Research | Spotted B-86 Titan 23400 | -3/Research | Spotted B-86 Titan 23578 | -3/Research | Identified Transdimensional Reconstructor 23689 | -3/Research | Repaired Tri-rail Accelerator 23727 | -3/Research | Repaired Cld. Impulse Thruster 23744 | -3/Research | Discovered exit to Research (range 15) 24069 | -3/Research | Fabricated M-30 Cleanser (x1) 24131 | -3/Research | Lost 4 parts (1p2n1u) 24239 | -3/Research | Discovered exit to Research (range 5) 24439 | -3/Research | Fabricated Nanosword (x1) 24508 | -3/Research | Learned location of 1 exit from Armory 24549 | -3/Research | Learned 4 Testing zone layouts 24582 | -3/Research | Learned Access recycling unit intel 24603 | -3/Research | Learned location of 3 exits from Research 24614 | -3/Research | Loaded intel: 88 non-interactive machine locations 24665 | -3/Research | Learned Testing trap positions 24679 | -3/Research | Build established: Wizard-Ninja 24704 | -3/Research | Learned Quarantine terminal intel 24706 | -3/Research | Entered Quarantine 24707 | -3/Quarantine | Loaded intel: 17 terminal locations 24802 | -3/Quarantine | Unchained authorized (CL-0N3) 24811 | -3/Quarantine | Found Alien Artifact 24816 | -3/Quarantine | Found Alien Artifact 24847 | -3/Quarantine | Found Alien Artifact 24912 | -3/Quarantine | Found Alien Energy Cannon 24941 | -3/Quarantine | Found Alien Slashing Weapon 24941 | -3/Quarantine | Identified Sigix Broadsword 24950 | -3/Quarantine | Discovered exit to Research (range 5) 25009 | -3/Quarantine | O-24 Administrator reconstituted as Quarantine Guard 25009 | -3/Quarantine | Spotted Quarantine Guard 25059 | -3/Quarantine | Learned Research emergency access door positions 25066 | -3/Quarantine | Destroyed Quarantine Guard 25066 | -3/Quarantine | Quarantine Guard reconstituted as CL-0N3 25078 | -3/Quarantine | Learned Testing terminal intel 25085 | -3/Quarantine | Learned Research security intel 25086 | -3/Quarantine | Learned 4 Access zone layouts 25088 | -3/Quarantine | Learned location of 1 exit from Section 7 25097 | -3/Quarantine | Learned 4 Access zone layouts 25118 | -3/Quarantine | Learned Research non-interactive machine intel 25274 | -3/Quarantine | Scanned by Researcher 25289 | -3/Quarantine | K-01 Serf reconstituted as Cetus Guard 25289 | -3/Quarantine | Spotted Cetus Guard 25346 | -3/Quarantine | Spotted Fortress 25357 | -3/Quarantine | Discovered new exit (range 5) 25357 | -3/Quarantine | Discovered new exit (range 6) 25358 | -3/Quarantine | Identified exit to Protoforge 25358 | -3/Quarantine | Entered Protoforge 25363 | -3/Protoforge | Identified Subatomic Replicator 25369 | -3/Protoforge | Spotted Hotshot 25369 | -3/Protoforge | Spotted Hotshot 25369 | -3/Protoforge | Spotted Hotshot 25419 | -3/Protoforge | Spotted Hotshot 25420 | -3/Protoforge | Spotted Hotshot 25420 | -3/Protoforge | Spotted Hotshot 25513 | -3/Protoforge | Identified Terrabomb 25513 | -3/Protoforge | Used Terrabomb 25518 | -3/Protoforge | Spotted Hotshot 25518 | -3/Protoforge | Spotted Hotshot 25518 | -3/Protoforge | Spotted Hotshot 25518 | -3/Protoforge | Spotted Hotshot 25518 | -3/Protoforge | Spotted EXE-6 25518 | -3/Protoforge | Spotted EXE-6 25520 | -3/Protoforge | Spotted Decapitator 25521 | -3/Protoforge | Spotted Decapitator 25535 | -3/Protoforge | Build established: Wizard-Sprinter 25535 | -3/Protoforge | Spotted EXE-6 25535 | -3/Protoforge | Spotted EXE-6 25565 | -3/Protoforge | Fabricated Nanoactuators (x2) 25574 | -3/Protoforge | Fabricated Exp. Propulsion Shielding (x1) 25579 | -3/Protoforge | Fabricated Cld. Field Propulsion Drive (x1) 25580 | -3/Protoforge | Fabricated Nanosword (x1) 25716 | -3/Protoforge | Superfortress began startup sequence 25725 | -3/Protoforge | High security lockdown imminent 25733 | -3/Protoforge | Core integrity fell below 50% 25746 | -3/Protoforge | Spotted Decapitator 25746 | -3/Protoforge | Spotted Decapitator 25746 | -3/Protoforge | Spotted V713-o 25746 | -3/Protoforge | Spotted V496-j 25750 | -3/Protoforge | Found Prototype Storage 25750 | -3/Protoforge | Identified Cep. Antigrav Storage Unit 25771 | -3/Protoforge | Found Prototype Device 25773 | -3/Protoforge | Found Prototype Device 25773 | -3/Protoforge | Identified Exp. System Purifier 25775 | -3/Protoforge | Found Exp. System Purifier 25781 | -3/Protoforge | Found Femtoactuators 25783 | -3/Protoforge | Found Femtoactuators 25784 | -3/Protoforge | Found Cep. Weapon Articulator 25786 | -3/Protoforge | Found Faulty Cep. Melee Reflex Suite 25787 | -3/Protoforge | Found Faulty Cep. Melee Reflex Suite 25789 | -3/Protoforge | Found Prototype Device 25789 | -3/Protoforge | Identified Exp. Kinecellerator 25794 | -3/Protoforge | Identified Crosscalibrator 25805 | -3/Protoforge | High security lockdown engaged 25856 | -3/Protoforge | Spotted Immortal 25873 | -3/Protoforge | Spotted Decapitator 25873 | -3/Protoforge | Spotted Decapitator 25873 | -3/Protoforge | Spotted Decapitator 25873 | -3/Protoforge | Spotted Decapitator 25875 | -3/Protoforge | Destroyed Decapitator 25882 | -3/Protoforge | Destroyed Decapitator 25884 | -3/Protoforge | Destroyed Decapitator 25884 | -3/Protoforge | Destroyed Decapitator 25907 | -3/Protoforge | Found Cep. Tiamat Rocket Array 25909 | -3/Protoforge | Found Cep. Rapid Grenade Launcher 25917 | -3/Protoforge | Spotted Immortal 25921 | -3/Protoforge | Found Cep. Deflector Sword 25923 | -3/Protoforge | Found Prototype Piercing Weapon 25923 | -3/Protoforge | Identified Exp. Jetlance 25928 | -3/Protoforge | Found Cep. Disintegration Ray 25929 | -3/Protoforge | Found Faulty Cep. Disintegration Ray 25932 | -3/Protoforge | Found Exp. Jetlance 25967 | -3/Protoforge | Warped through subspace 26002 | -3/Protoforge | Lost 3 parts (2n1u) 26008 | -3/Protoforge | Spotted Decapitator 26008 | -3/Protoforge | Spotted Decapitator 26008 | -3/Protoforge | Spotted Decapitator 26008 | -3/Protoforge | Spotted Decapitator 26015 | -3/Protoforge | Spotted Immortal 26015 | -3/Protoforge | Spotted Immortal 26015 | -3/Protoforge | Spotted V536-a 26023 | -3/Protoforge | Spotted V606-l 26032 | -3/Protoforge | Destroyed V606-l 26053 | -3/Protoforge | Found Faulty Cep. Biometal Exoskeleton 26065 | -3/Protoforge | Found Cep. Combat Aerolev Unit 26067 | -3/Protoforge | Found Cep. Combat Aerolev Unit 26091 | -3/Protoforge | Spotted V804-s 26112 | -3/Protoforge | Destroyed Immortal 26122 | -3/Protoforge | Spotted V189-d 26151 | -3/Protoforge | Destroyed V804-s 26151 | -3/Protoforge | Destroyed V536-a 26164 | -3/Protoforge | Core integrity fell below 20% 26172 | -3/Protoforge | Destroyed V189-d 26199 | -3/Protoforge | Found Cep. Biometal Exoskeleton 26200 | -3/Protoforge | Lost 5 parts (1p1n3u) 26232 | -3/Protoforge | Found Corrupted Prototype Device 26232 | -3/Protoforge | Identified Cep. Antimissile System 26233 | -3/Protoforge | System corruption reached 10% 26237 | -3/Protoforge | Identified Core Cannon 26272 | -3/Protoforge | Crushed by falling debris 26287 | -3/Protoforge | Found Prototype Device 26287 | -3/Protoforge | Identified Cep. Thermoelectric Network 26291 | -3/Protoforge | Found Faulty Cep. Cloak Mesh 26300 | -3/Protoforge | Found Cep. Cloak Mesh 26315 | -3/Protoforge | Crushed by falling debris 26378 | -3/Protoforge | Lost 4 parts (2u2w) 26389 | -3/Protoforge | Found Cep. Biometal Exoskeleton 26411 | -3/Protoforge | Crushed by falling debris 26412 | -3/Protoforge | System corruption reached 30% 26439 | -3/Protoforge | Found Cep. Projectile Intercept Suite 26451 | -3/Protoforge | Found Cep. Energy Mantle 26459 | -3/Protoforge | Spotted V440-o 26477 | -3/Protoforge | Spotted V722-v 26477 | -3/Protoforge | Spotted V457-x 26488 | -3/Protoforge | Additional patrols dispatched to research labs 26489 | -3/Protoforge | Build established: Scavenger-Mutant 26508 | -3/Protoforge | Spotted Investigator 26534 | -3/Protoforge | Destroyed Investigator 26595 | -3/Protoforge | Spotted AP7-3 26595 | -3/Protoforge | Spotted AP7-3 26599 | -3/Protoforge | Destroyed by AP7-3 with Concept XC Strikerail Last Messages --------------- 26555_ Penetrated by Slug. 26555_ Slug penetrates H-88 Terminator. 26557_ Slug penetrates Wall. 26558_ Penetrated by Slug. 26559_ Deflected attack with Nanosword. 26560_ Slug penetrates Wall. 26561_ Wall collapses. 26561_ Slug penetrates Wall. 26561_ Slug penetrates Machine. 26562_ Slug penetrates H-88 Terminator. 26562_ Penetrated by Slug. 26562_ Slug penetrates Wall. 26562_ Penetrated by Slug. 26563_ Slug penetrates G-73 Enforcer. 26569_ MEN%NBQZOV5JZA=|BVIRH>6CEQZ0CDTEI0U74 26584_ System corrupted: Heat flow error (+270). 26594_ W-44 Eye sends out distress signal. 26599_ System corrupted: FCS attempts to trigger Core Cannon. 26599_ Penetrated by Slug. Map ----- +----------------------------------------------------+ | ???????????????????? ? " "" " | | ??????????????????? ?" " """ | | ??????????????????" " "" """""" """ | | ????????????????? "" """ | | ???????????????? "" "" """ " | | ???????????????# """"" "" " """" " " | | ???????????????# " " " " | | ???????????????# " " "" """" " " " | | ???????????????# """"" "" "" | | ???????????????# " "" " """""""" | | ???????????????# """" "" """"""""""" | | ???????????????# """" "" """""""""""" | | ???????????? ### " """"""""""""" | | ??????????? / "" " """""""""""""" | | ???????????? 7 " """"""""""""""" | | ?????????????? / " "" """""""""""""""" | | ???????????????#w """"" " """"""""""""""""" | | ???????????????# 7"" "" " """"""""""""""""? | | ???????????????# "" " "" """""""""""""""?? | | ???????????????# "" " """"""""""""""""?? | | ???????????????# "" " """""""""""""""??? | | ???????????????# " """""""""""""????? | | ???????????????# "" """""""""""??????? | | ???????????????# """ " " """"""""""???????? | | ???????????????# " "" """""""""????????? | | ???????????????# """ @ " """""""""????????? | | ???????????????# " """ """"" " """""""""????????? | | ????????????# "" " """""""""????????? | | ??????????# " """""""?????????? | | ????? ; """""""?????????? | | ?? ; """"""" "" """"""??????????? | | ; """ " " """""??????????? | | ; " " """"??????????? | | ; "" ""???????????? | | ; "" "" "" "?""""""????? | | ; "" "" " "" """""""""??? | | ; "" """ "" """""""""?? | | " " " """""??? | | " " "" """ | | " " " """ "" " """"" " | | " " """ " | | " "" " " "" | | " " " " "" " """ """ | | " " " " """" "?" | | " " "" " " """ " """ " | | " " "" "" " " " " | | " " " "" " | | " " "" "" " """"" "" "" | | " " "" " " " " | | """""""" " "" "" " | +----------------------------------------------------+ Best States ------------- Heat Dissipation 46 Energy Generation 51 Energy Capacity 1400 Matter Stores 300 Matter Capacity 300 Sight Range 24 Robot Scan Range 18 Terrain Scan Range 16 Terrain Scan Density 10 ECM Strength 2 Jamming Range 16 Cloak Strength 6 Power Amplification 30 Armor Coverage 225 Propulsion Shielding 90 Utility Shielding 66 Point Defense Rating 480 Projectile Deflection 15 Melee Speed Boost 50 Evasion (%) 68 Targeting Accuracy 30 Melee Accuracy 16 Core Analysis 8 Armor Integrity Analysis 40 Recoil Reduction 4 Kinecelleration 66 Offensive Hacking 68 Defensive Hacking 25 Authchip Count 2 Trap Extractor Capacity 8 Item Schematics ----------------- Imp. Flight Unit | -9/Materials | Scanalyzed Imp. Hacking Suite | -7/Factory | Hacked Cld. VTOL Module | -7/Factory | Scanalyzed Mace | -7/Factory | Hacked System Restoration Module | -7/Factory | Hacked Plasma Cutter | -7/Factory | Scanalyzed Graphene Brace | -6/Factory | Hacked Transport Network Coupler | -6/Factory | Scanalyzed Adv. Hacking Suite | -6/Factory | Hacked Cld. Nuclear Pulse Thruster | -6/Factory | Scanalyzed Gui. EMP Blaster | -6/Factory | Hacked Exp. Propulsion Shielding | -5/Factory | Hacked Exp. Utility Shielding | -5/Factory | Hacked Tri-rail Accelerator | -5/Factory | Hacked Adv. Signal Interpreter | -5/Factory | Hacked Cld. Aerolev Unit | -5/Factory | Hacked Micro-nuke Launcher | -5/Factory | Scanalyzed Biometal Medium Treads | -5/Factory | Hacked Mic. Fission Core | -5/Factory | Hacked Adv. Sensor Array | -5/Factory | Hacked Exp. Targeting Computer | -5/Factory | Hacked Adv. Actuator Array | -5/Factory | Hacked Exp. Hacking Suite | -5/Factory | Hacked Jamming Amplifier | -5/Factory | Scanalyzed Gamma Bomb Array | -5/Factory | Hacked Nanoactuators | -4/Factory | Hacked Nanosword | -3/Research | Scanalyzed Enh. Armored Medium Treads | -3/Quarantine | Archive Multireflex Exoskeleton | -3/Quarantine | Archive Plasma Lance | -3/Quarantine | Archive Enh. Biometal Leg | -3/Quarantine | Archive Exp. Optical Array | -3/Quarantine | Archive Adv. EM Shield | -3/Quarantine | Archive Hvy. Wave Gun | -3/Quarantine | Archive Cld. Field Propulsion Drive | -3/Quarantine | Archive Adv. Gravity Neutralizer | -3/Quarantine | Archive Cld. Antigrav System | -3/Quarantine | Archive Adv. Variable Charge Gun | -3/Quarantine | Archive Lrn. Phase Cannon | -3/Quarantine | Archive Electron Diverter | -3/Quarantine | Archive Com. Particle Reactor | -3/Quarantine | Archive Com. Mass Driver | -3/Quarantine | Archive Enh. Force Rifle | -3/Protoforge | Archive Adv. Myomer Leg | -3/Protoforge | Archive Vibroblade | -3/Protoforge | Archive Neutron Cannon | -3/Protoforge | Archive Adv. KE Penetrator | -3/Protoforge | Archive Imp. KE Penetrator | -3/Protoforge | Archive Robot Schematics ------------------ M-28 Smith | -7/Factory | Hacked X-62 Marksman | -5/Factory | Hacked M-30 Cleanser | -3/Research | Hacked R-06 Scavenger | -3/Quarantine | Archive A-02 Transporter | -3/Quarantine | Archive G-67 Veteran | -3/Quarantine | Archive A-15 Conveyor | -3/Quarantine | Archive L-61 Swordsman | -3/Quarantine | Archive H-77 Assassin | -3/Quarantine | Archive T-07 Excavator | -3/Protoforge | Archive Fabricated ------------ Imp. Hacking Suite | x1 | -7/Factory Cld. VTOL Module | x1 | -7/Factory | Authchip Cld. VTOL Module | x1 | -7/Factory Cld. VTOL Module | x1 | -7/Factory M-28 Smith | x1 | -7/Factory | Authchip System Restoration Module | x2 | -7/Factory M-28 Smith | x1 | -7/Factory Cld. VTOL Module | x1 | -7/Factory Cld. VTOL Module | x1 | -6/Factory Cld. VTOL Module | x1 | -6/Factory Adv. Hacking Suite | x1 | -6/Factory Adv. Hacking Suite | x1 | -6/Factory Adv. Hacking Suite | x1 | -6/Factory Adv. Hacking Suite | x1 | -6/Factory Exp. Propulsion Shielding | x1 | -5/Factory Tri-rail Accelerator | x1 | -5/Factory Adv. Hacking Suite | x1 | -5/Factory Adv. Sensor Array | x2 | -5/Factory Adv. Signal Interpreter | x2 | -5/Factory Adv. Hacking Suite | x1 | -5/Factory Exp. Hacking Suite | x1 | -4/Factory Exp. Targeting Computer | x1 | -4/Factory M-30 Cleanser | x1 | -3/Research Nanosword | x1 | -3/Research Nanoactuators | x2 | -3/Protoforge Exp. Propulsion Shielding | x1 | -3/Protoforge Cld. Field Propulsion Drive | x1 | -3/Protoforge Nanosword | x1 | -3/Protoforge Repaired ---------- Lgt. Treads | 40% | -9/Materials Huge Storage Unit | 30% | -9/Materials Imp. Flight Unit | 62% | -7/Factory Greatsword | 50% | -6/Factory Cld. VTOL Module | 56% | -5/Factory Tri-rail Accelerator | 38% | -5/Factory Cld. Cesium-ion Thruster | 4% | -5/Factory Cld. VTOL Module | 36% | -5/Factory Cld. VTOL Module | 46% | -5/Factory Imp. Utility Shielding | 62% | -5/Factory Micro-nuke Launcher | 33% | -5/Factory Exp. Propulsion Shielding | 50% | -4/Factory Tri-rail Accelerator | 11% | -4/Factory Tri-rail Accelerator | 42% | -4/Factory Cld. VTOL Module | 1% | -3/Research Tri-rail Accelerator | 13% | -3/Research Cld. Impulse Thruster | 16% | -3/Research Studied --------- Lgt. Assault Rifle | -9/Materials | Hacked Assault Rifle | -9/Materials | Hacked Greatsword | -7/Factory | Hacked Imp. Datajack | -6/Factory | Hacked Falx | -6/Factory | Hacked Lgt. Nuclear Core | -5/Factory | Hacked Micro-nuke Launcher | -5/Factory | Hacked Field Propulsion Drive | -4/Factory | Hacked Imp. Fusion Compressor | -4/Factory | Hacked Neutrino Core | -3/Research | Hacked Xenon Bombardment Thruster | -3/Research | Hacked Mic. Antimatter Reactor | -3/Research | Hacked Alien Tech Used ----------------- Core Expander Integrated Reactor Sigix Broadsword Terrabomb Transdimensional Reconstructor Core Cannon Achievements -------------- Definitely A Prototype No Room For Error Professional Mechanic Challenges ------------ None Game ------ Seed TimingDisintegrationBooster Manual? 0 Play Time 10:22:09 Cumulative 409.5 hours Start 2025.11.10 @ 16:17:02 End 2025.11.11 @ 07:04:17 Sessions 7 Manual Loads 0 Difficulty Rogue Special Mode None Game No. 182 Rogue 174 Adventurer 8 Explorer 0 Win Type - Total 27 Types 13/1/4/3/0/1/1/1/2/1 Lore% 90 Gallery% 90 Achievement% 77 Wizard Run 0 Options --------- Layout 2 ASCII 0 Keyboard 1 Movement Numpad Keybinds 1 Fullscreen 2 Font 24/Smallcaps Map View 50x44 Zoom Use 0% Tactical HUD 1 Map Filters NONE Filters NONE Steam 1 RUN: ab0e5321-a039-45eb-a98a-1e49e268aa08